Workbook

Sheet Biztosítási termékismertető

Sheet Adatközlő
B1: Szakág kereső:
B2: Adatközlő | N2: 1
L3: Volumenengedmény
B4: Biztosított személyek száma | C4: Szakág | F4: Limit | L4: fő | M4: %
F5: 5/15 | G5: 10/20 | L5: 1 | M5: 1
A6: =IF(B6>0,COUNTIF($I$6:I6,1),"") ->  | C6: addiktológia (szenvedélybetegségek orvoslása) | F6: 13500 | G6: 16000 | H6: =B6*IF(Ajánlat1!$J$139=2,Adatközlő!G6,Adatközlő!F6) -> 0 | I6: =IF(B6>0,1,"") ->  | L6: 2 | M6: 0.94
A7: =IF(B7>0,COUNTIF($I$6:I7,1),"") ->  | C7: egészségbiztosítás | F7: 13500 | G7: 16000 | H7: =B7*IF(Ajánlat1!$J$139=2,Adatközlő!G7,Adatközlő!F7) -> 0 | I7: =IF(B7>0,1,"") ->  | L7: 3 | M7: 0.92
A8: =IF(B8>0,COUNTIF($I$6:I8,1),"") ->  | C8: foniátria (a beszédhangok képzési zavarának gyógyítása) | F8: 13500 | G8: 16000 | H8: =B8*IF(Ajánlat1!$J$139=2,Adatközlő!G8,Adatközlő!F8) -> 0 | L8: 4 | M8: 0.91
A9: =IF(B9>0,COUNTIF($I$6:I9,1),"") ->  | C9: honvéd / katasztrófa orvostan | F9: 13500 | G9: 16000 | H9: =B9*IF(Ajánlat1!$J$139=2,Adatközlő!G9,Adatközlő!F9) -> 0 | L9: 5 | M9: 0.9
A10: =IF(B10>0,COUNTIF($I$6:I10,1),"") ->  | C10: igazságügyi orvostan | F10: 13500 | G10: 16000 | H10: =B10*IF(Ajánlat1!$J$139=2,Adatközlő!G10,Adatközlő!F10) -> 0 | L10: 6 | M10: 0.88
A11: =IF(B11>0,COUNTIF($I$6:I11,1),"") ->  | C11: igazságügyi elmeorvostan | F11: 13500 | G11: 16000 | H11: =B11*IF(Ajánlat1!$J$139=2,Adatközlő!G11,Adatközlő!F11) -> 0 | L11: 7 | M11: 0.86
A12: =IF(B12>0,COUNTIF($I$6:I12,1),"") ->  | C12: immunológia | F12: 13500 | G12: 16000 | H12: =B12*IF(Ajánlat1!$J$139=2,Adatközlő!G12,Adatközlő!F12) -> 0 | L12: 8 | M12: 0.84
A13: =IF(B13>0,COUNTIF($I$6:I13,1),"") ->  | C13: klinikai laboratóriumi vizsgálatok | F13: 13500 | G13: 16000 | H13: =B13*IF(Ajánlat1!$J$139=2,Adatközlő!G13,Adatközlő!F13) -> 0 | L13: 9 | M13: 0.82
A14: =IF(B14>0,COUNTIF($I$6:I14,1),"") ->  | C14: klinikai genetika | F14: 13500 | G14: 16000 | H14: =B14*IF(Ajánlat1!$J$139=2,Adatközlő!G14,Adatközlő!F14) -> 0 | L14: 10 | M14: 0.8
A15: =IF(B15>0,COUNTIF($I$6:I15,1),"") ->  | C15: klinikai szakpszichológia (nem orvos) | F15: 13500 | G15: 16000 | H15: =B15*IF(Ajánlat1!$J$139=2,Adatközlő!G15,Adatközlő!F15) -> 0 | L15: 11 | M15: 0.79
A16: =IF(B16>0,COUNTIF($I$6:I16,1),"") ->  | C16: kórbonctan-kórszövettan | F16: 13500 | G16: 16000 | H16: =B16*IF(Ajánlat1!$J$139=2,Adatközlő!G16,Adatközlő!F16) -> 0 | L16: 12 | M16: 0.79
A17: =IF(B17>0,COUNTIF($I$6:I17,1),"") ->  | C17: laboratóriumi haematológia | F17: 13500 | G17: 16000 | H17: =B17*IF(Ajánlat1!$J$139=2,Adatközlő!G17,Adatközlő!F17) -> 0 | L17: 13 | M17: 0.78
A18: =IF(B18>0,COUNTIF($I$6:I18,1),"") ->  | C18: neuropatológia (idegkórtan) | F18: 13500 | G18: 16000 | H18: =B18*IF(Ajánlat1!$J$139=2,Adatközlő!G18,Adatközlő!F18) -> 0 | L18: 14 | M18: 0.77
A19: =IF(B19>0,COUNTIF($I$6:I19,1),"") ->  | C19: neurológia (ideggyógyászat, gyermek és felnőtt) | F19: 13500 | G19: 16000 | H19: =B19*IF(Ajánlat1!$J$139=2,Adatközlő!G19,Adatközlő!F19) -> 0 | L19: 15 | M19: 0.77
A20: =IF(B20>0,COUNTIF($I$6:I20,1),"") ->  | C20: molekuláris genetikai diagnosztika | F20: 13500 | G20: 16000 | H20: =B20*IF(Ajánlat1!$J$139=2,Adatközlő!G20,Adatközlő!F20) -> 0 | L20: 16 | M20: 0.76
A21: =IF(B21>0,COUNTIF($I$6:I21,1),"") ->  | C21: orvosi mikrobiológia | F21: 13500 | G21: 16000 | H21: =B21*IF(Ajánlat1!$J$139=2,Adatközlő!G21,Adatközlő!F21) -> 0 | L21: 17 | M21: 0.75
A22: =IF(B22>0,COUNTIF($I$6:I22,1),"") ->  | C22: orvosi laboratóriumi diagnosztika | F22: 13500 | G22: 16000 | H22: =B22*IF(Ajánlat1!$J$139=2,Adatközlő!G22,Adatközlő!F22) -> 0 | L22: 18 | M22: 0.75
A23: =IF(B23>0,COUNTIF($I$6:I23,1),"") ->  | C23: sugárbiológia, sugár-egészségügy | F23: 13500 | G23: 16000 | H23: =B23*IF(Ajánlat1!$J$139=2,Adatközlő!G23,Adatközlő!F23) -> 0 | L23: 19 | M23: 0.75
A24: =IF(B24>0,COUNTIF($I$6:I24,1),"") ->  | C24: társadalom-orvostan | F24: 13500 | G24: 16000 | H24: =B24*IF(Ajánlat1!$J$139=2,Adatközlő!G24,Adatközlő!F24) -> 0 | L24: 20 | M24: 0.75
A25: =IF(B25>0,COUNTIF($I$6:I25,1),"") ->  | C25: trópusi betegségek orvoslása | F25: 13500 | G25: 16000 | H25: =B25*IF(Ajánlat1!$J$139=2,Adatközlő!G25,Adatközlő!F25) -> 0
B26: 2. csoport:
A27: =IF(B27>0,COUNTIF($I$6:I27,1),"") ->  | C27: allergologia | F27: 19000 | G27: 23500 | H27: =B27*IF(Ajánlat1!$J$139=2,Adatközlő!G27,Adatközlő!F27) -> 0 | K27: Orvos van?
A28: =IF(B28>0,COUNTIF($I$6:I28,1),"") ->  | C28: audiológia (hallástan) | F28: 19000 | G28: 23500 | H28: =B28*IF(Ajánlat1!$J$139=2,Adatközlő!G28,Adatközlő!F28) -> 0 | K28: =IF(OR(SUM(I6:I78)>0,SUM(B128:B129)>0),1,0) -> 0
A29: =IF(B29>0,COUNTIF($I$6:I29,1),"") ->  | C29: endokrinológia (hormonrendszer orvoslása) | F29: 19000 | G29: 23500 | H29: =B29*IF(Ajánlat1!$J$139=2,Adatközlő!G29,Adatközlő!F29) -> 0
A30: =IF(B30>0,COUNTIF($I$6:I30,1),"") ->  | C30: fertőző betegségek orvoslása | F30: 19000 | G30: 23500 | H30: =B30*IF(Ajánlat1!$J$139=2,Adatközlő!G30,Adatközlő!F30) -> 0
A31: =IF(B31>0,COUNTIF($I$6:I31,1),"") ->  | C31: fizioterápia | F31: 19000 | G31: 23500 | H31: =B31*IF(Ajánlat1!$J$139=2,Adatközlő!G31,Adatközlő!F31) -> 0
A32: =IF(B32>0,COUNTIF($I$6:I32,1),"") ->  | C32: fizikális medicina és rehabilitációs orvoslás | F32: 19000 | G32: 23500 | H32: =B32*IF(Ajánlat1!$J$139=2,Adatközlő!G32,Adatközlő!F32) -> 0
A33: =IF(B33>0,COUNTIF($I$6:I33,1),"") ->  | C33: gasztroenterológia (emésztőszervi megbetegedések, gyermek és felnőtt) | F33: 19000 | G33: 23500 | H33: =B33*IF(Ajánlat1!$J$139=2,Adatközlő!G33,Adatközlő!F33) -> 0
A34: =IF(B34>0,COUNTIF($I$6:I34,1),"") ->  | C34: geriátria (időskori megbetegedések orvoslása) | F34: 19000 | G34: 23500 | H34: =B34*IF(Ajánlat1!$J$139=2,Adatközlő!G34,Adatközlő!F34) -> 0
A35: =IF(B35>0,COUNTIF($I$6:I35,1),"") ->  | C35: háziorvos | F35: 19000 | G35: 23500 | H35: =B35*IF(Ajánlat1!$J$139=2,Adatközlő!G35,Adatközlő!F35) -> 0
A36: =IF(B36>0,COUNTIF($I$6:I36,1),"") ->  | C36: házi gyermekorvos | F36: 19000 | G36: 23500 | H36: =B36*IF(Ajánlat1!$J$139=2,Adatközlő!G36,Adatközlő!F36) -> 0
A37: =IF(B37>0,COUNTIF($I$6:I37,1),"") ->  | C37: haematológia (vérképző rendszer megbetegedései) | F37: 19000 | G37: 23500 | H37: =B37*IF(Ajánlat1!$J$139=2,Adatközlő!G37,Adatközlő!F37) -> 0
A38: =IF(B38>0,COUNTIF($I$6:I38,1),"") ->  | C38: üzemorvostan | F38: 19000 | G38: 23500 | H38: =B38*IF(Ajánlat1!$J$139=2,Adatközlő!G38,Adatközlő!F38) -> 0
A39: =IF(B39>0,COUNTIF($I$6:I39,1),"") ->  | C39: infektológia (fertőző betegségek orvoslása) | F39: 19000 | G39: 23500 | H39: =B39*IF(Ajánlat1!$J$139=2,Adatközlő!G39,Adatközlő!F39) -> 0
A40: =IF(B40>0,COUNTIF($I$6:I40,1),"") ->  | C40: iskola-egészségügy | F40: 19000 | G40: 23500 | H40: =B40*IF(Ajánlat1!$J$139=2,Adatközlő!G40,Adatközlő!F40) -> 0
A41: =IF(B41>0,COUNTIF($I$6:I41,1),"") ->  | C41: izotópdiagnosztika | F41: 19000 | G41: 23500 | H41: =B41*IF(Ajánlat1!$J$139=2,Adatközlő!G41,Adatközlő!F41) -> 0
A42: =IF(B42>0,COUNTIF($I$6:I42,1),"") ->  | C42: klinikai immunológia | F42: 19000 | G42: 23500 | H42: =B42*IF(Ajánlat1!$J$139=2,Adatközlő!G42,Adatközlő!F42) -> 0
A43: =IF(B43>0,COUNTIF($I$6:I43,1),"") ->  | C43: mozgásszervi rehabilitáció | F43: 19000 | G43: 23500 | H43: =B43*IF(Ajánlat1!$J$139=2,Adatközlő!G43,Adatközlő!F43) -> 0
A44: =IF(B44>0,COUNTIF($I$6:I44,1),"") ->  | C44: közegészségügy / népegészségügy, megelőző orvostan | F44: 19000 | G44: 23500 | H44: =B44*IF(Ajánlat1!$J$139=2,Adatközlő!G44,Adatközlő!F44) -> 0
A45: =IF(B45>0,COUNTIF($I$6:I45,1),"") ->  | C45: járványügy, járványügyi laboratóriumi vizsgálatok | F45: 19000 | G45: 23500 | H45: =B45*IF(Ajánlat1!$J$139=2,Adatközlő!G45,Adatközlő!F45) -> 0
A46: =IF(B46>0,COUNTIF($I$6:I46,1),"") ->  | C46: ortopédia | F46: 19000 | G46: 23500 | H46: =B46*IF(Ajánlat1!$J$139=2,Adatközlő!G46,Adatközlő!F46) -> 0
A47: =IF(B47>0,COUNTIF($I$6:I47,1),"") ->  | C47: orvosi rehabilitáció | F47: 19000 | G47: 23500 | H47: =B47*IF(Ajánlat1!$J$139=2,Adatközlő!G47,Adatközlő!F47) -> 0
A48: =IF(B48>0,COUNTIF($I$6:I48,1),"") ->  | C48: oxyológia (mentőorvostan) | F48: 19000 | G48: 23500 | H48: =B48*IF(Ajánlat1!$J$139=2,Adatközlő!G48,Adatközlő!F48) -> 0
A49: =IF(B49>0,COUNTIF($I$6:I49,1),"") ->  | C49: pszichiátria (gyermek és felnőtt) | F49: 19000 | G49: 23500 | H49: =B49*IF(Ajánlat1!$J$139=2,Adatközlő!G49,Adatközlő!F49) -> 0
A50: =IF(B50>0,COUNTIF($I$6:I50,1),"") ->  | C50: pszichoterápia | F50: 19000 | G50: 23500 | H50: =B50*IF(Ajánlat1!$J$139=2,Adatközlő!G50,Adatközlő!F50) -> 0
A51: =IF(B51>0,COUNTIF($I$6:I51,1),"") ->  | C51: pulmonologia (tüdőgyógyászat, légúti megbetegedések orvoslása) | F51: 19000 | G51: 23500 | H51: =B51*IF(Ajánlat1!$J$139=2,Adatközlő!G51,Adatközlő!F51) -> 0
A52: =IF(B52>0,COUNTIF($I$6:I52,1),"") ->  | C52: repülőorvostan | F52: 19000 | G52: 23500 | H52: =B52*IF(Ajánlat1!$J$139=2,Adatközlő!G52,Adatközlő!F52) -> 0
A53: =IF(B53>0,COUNTIF($I$6:I53,1),"") ->  | C53: reumatológia | F53: 19000 | G53: 23500 | H53: =B53*IF(Ajánlat1!$J$139=2,Adatközlő!G53,Adatközlő!F53) -> 0
A54: =IF(B54>0,COUNTIF($I$6:I54,1),"") ->  | C54: sportorvostan | F54: 19000 | G54: 23500 | H54: =B54*IF(Ajánlat1!$J$139=2,Adatközlő!G54,Adatközlő!F54) -> 0
A55: =IF(B55>0,COUNTIF($I$6:I55,1),"") ->  | C55: sürgősségi orvostan | F55: 19000 | G55: 23500 | H55: =B55*IF(Ajánlat1!$J$139=2,Adatközlő!G55,Adatközlő!F55) -> 0
A56: =IF(B56>0,COUNTIF($I$6:I56,1),"") ->  | C56: transzfuziológia | F56: 19000 | G56: 23500 | H56: =B56*IF(Ajánlat1!$J$139=2,Adatközlő!G56,Adatközlő!F56) -> 0
B57: 3. csoport:
A58: =IF(B58>0,COUNTIF($I$6:I58,1),"") ->  | C58: általános orvos | F58: 33500 | G58: 40000 | H58: =B58*IF(Ajánlat1!$J$139=2,Adatközlő!G58,Adatközlő!F58) -> 0
A59: =IF(B59>0,COUNTIF($I$6:I59,1),"") ->  | C59: andrológia (férfi betegségek orvoslása) | F59: 33500 | G59: 40000 | H59: =B59*IF(Ajánlat1!$J$139=2,Adatközlő!G59,Adatközlő!F59) -> 0
A60: =IF(B60>0,COUNTIF($I$6:I60,1),"") ->  | C60: belgyógyász | F60: 33500 | G60: 40000 | H60: =B60*IF(Ajánlat1!$J$139=2,Adatközlő!G60,Adatközlő!F60) -> 0
A61: =IF(B61>0,COUNTIF($I$6:I61,1),"") ->  | C61: bőrgyógyász | F61: 33500 | G61: 40000 | H61: =B61*IF(Ajánlat1!$J$139=2,Adatközlő!G61,Adatközlő!F61)*IF(D61="Kérem",1.8,1) -> 0
A62: =IF(B62>0,COUNTIF($I$6:I62,1),"") ->  | C62: bőrgyógyász egynapos sebészettel | F62: =F61*1.8 -> 60300 | G62: =G61*1.8 -> 72000 | H62: =B62*IF(Ajánlat1!$J$139=2,Adatközlő!G62,Adatközlő!F62)*IF(D62="Kérem",1.8,1) -> 0
A63: =IF(B63>0,COUNTIF($I$6:I63,1),"") ->  | C63: cytopatológia (kórszövettan) | F63: 33500 | G63: 40000 | H63: =B63*IF(Ajánlat1!$J$139=2,Adatközlő!G63,Adatközlő!F63) -> 0
A64: =IF(B64>0,COUNTIF($I$6:I64,1),"") ->  | C64: csecsemő-gyermekgyógyász | F64: 33500 | G64: 40000 | H64: =B64*IF(Ajánlat1!$J$139=2,Adatközlő!G64,Adatközlő!F64) -> 0
A65: =IF(B65>0,COUNTIF($I$6:I65,1),"") ->  | C65: diabetológus | F65: 33500 | G65: 40000 | H65: =B65*IF(Ajánlat1!$J$139=2,Adatközlő!G65,Adatközlő!F65) -> 0
A66: =IF(B66>0,COUNTIF($I$6:I66,1),"") ->  | C66: fül-orr-gégész (csecsemő, gyermek, felnőtt) | F66: 33500 | G66: 40000 | H66: =B66*IF(Ajánlat1!$J$139=2,Adatközlő!G66,Adatközlő!F66) -> 0
A67: =IF(B67>0,COUNTIF($I$6:I67,1),"") ->  | C67: gyermeknőgyógyászat | F67: 33500 | G67: 40000 | H67: =B67*IF(Ajánlat1!$J$139=2,Adatközlő!G67,Adatközlő!F67) -> 0
A68: =IF(B68>0,COUNTIF($I$6:I68,1),"") ->  | C68: kardiológus (csecsemő, gyermek, felnőtt) | F68: 33500 | G68: 40000 | H68: =B68*IF(Ajánlat1!$J$139=2,Adatközlő!G68,Adatközlő!F68) -> 0
A69: =IF(B69>0,COUNTIF($I$6:I69,1),"") ->  | C69: neonatológia (újszülött–gyógyászat) | F69: 33500 | G69: 40000 | H69: =B69*IF(Ajánlat1!$J$139=2,Adatközlő!G69,Adatközlő!F69) -> 0
A70: =IF(B70>0,COUNTIF($I$6:I70,1),"") ->  | C70: neuroradiológia (képalkotó eljárások) | F70: 33500 | G70: 40000 | H70: =B70*IF(Ajánlat1!$J$139=2,Adatközlő!G70,Adatközlő!F70) -> 0
A71: =IF(B71>0,COUNTIF($I$6:I71,1),"") ->  | C71: onkológia | F71: 33500 | G71: 40000 | H71: =B71*IF(Ajánlat1!$J$139=2,Adatközlő!G71,Adatközlő!F71) -> 0
A72: =IF(B72>0,COUNTIF($I$6:I72,1),"") ->  | C72: radiológia (gyermek és felnőtt) | F72: 33500 | G72: 40000 | H72: =B72*IF(Ajánlat1!$J$139=2,Adatközlő!G72,Adatközlő!F72) -> 0
A73: =IF(B73>0,COUNTIF($I$6:I73,1),"") ->  | C73: röntgenológia | F73: 33500 | G73: 40000 | H73: =B73*IF(Ajánlat1!$J$139=2,Adatközlő!G73,Adatközlő!F73) -> 0
A74: =IF(B74>0,COUNTIF($I$6:I74,1),"") ->  | C74: sugárterápia | F74: 33500 | G74: 40000 | H74: =B74*IF(Ajánlat1!$J$139=2,Adatközlő!G74,Adatközlő!F74) -> 0 | I74: =IF(B74>0,1,"") -> 
A75: =IF(B75>0,COUNTIF($I$6:I75,1),"") ->  | C75: szemészet (gyermek és felnőtt) | F75: 33500 | G75: 40000 | H75: =B75*IF(Ajánlat1!$J$139=2,Adatközlő!G75,Adatközlő!F75)*IF(D75="Kérem",1.8,1) -> 0
A76: =IF(B76>0,COUNTIF($I$6:I76,1),"") ->  | C76: szemészet (gyermek és felnőtt) egynapos sebészettel | F76: =F75*1.8 -> 60300 | G76: =G75*1.8 -> 72000 | H76: =B76*IF(Ajánlat1!$J$139=2,Adatközlő!G76,Adatközlő!F76)*IF(D76="Kérem",1.8,1) -> 0
A77: =IF(B77>0,COUNTIF($I$6:I77,1),"") ->  | C77: ultrahang diagnoszta | F77: 33500 | G77: 40000 | H77: =B77*IF(Ajánlat1!$J$139=2,Adatközlő!G77,Adatközlő!F77) -> 0
A78: =IF(B78>0,COUNTIF($I$6:I78,1),"") ->  | C78: urológia | F78: 33500 | G78: 40000 | H78: =B78*IF(Ajánlat1!$J$139=2,Adatközlő!G78,Adatközlő!F78) -> 0
B79: Egészségügyi szakszemélyzet:
A80: =IF(B80>0,COUNTIF($I$6:I80,1),"") ->  | C80: asszisztens | F80: 1500 | G80: 1800 | H80: =B80*IF($K$28=1,IF(Ajánlat1!$J$139=2,Adatközlő!G80,Adatközlő!F80),IF(Ajánlat1!$J$139=2,Adatközlő!$G$131,Adatközlő!$F$131)) -> 0
A81: =IF(B81>0,COUNTIF($I$6:I81,1),"") ->  | C81: ápoló | F81: 1500 | G81: 1800 | H81: =B81*IF($K$28=1,IF(Ajánlat1!$J$139=2,Adatközlő!G81,Adatközlő!F81),IF(Ajánlat1!$J$139=2,Adatközlő!$G$131,Adatközlő!$F$131)) -> 0
A82: =IF(B82>0,COUNTIF($I$6:I82,1),"") ->  | C82: betegszállító | F82: 1500 | G82: 1800 | H82: =B82*IF($K$28=1,IF(Ajánlat1!$J$139=2,Adatközlő!G82,Adatközlő!F82),IF(Ajánlat1!$J$139=2,Adatközlő!$G$131,Adatközlő!$F$131)) -> 0
A83: =IF(B83>0,COUNTIF($I$6:I83,1),"") ->  | C83: boncmester | F83: 1500 | G83: 1800 | H83: =B83*IF($K$28=1,IF(Ajánlat1!$J$139=2,Adatközlő!G83,Adatközlő!F83),IF(Ajánlat1!$J$139=2,Adatközlő!$G$131,Adatközlő!$F$131)) -> 0
A84: =IF(B84>0,COUNTIF($I$6:I84,1),"") ->  | C84: dietetikus | F84: 1500 | G84: 1800 | H84: =B84*IF($K$28=1,IF(Ajánlat1!$J$139=2,Adatközlő!G84,Adatközlő!F84),IF(Ajánlat1!$J$139=2,Adatközlő!$G$131,Adatközlő!$F$131)) -> 0
A85: =IF(B85>0,COUNTIF($I$6:I85,1),"") ->  | C85: eü. ellenőr | F85: 1500 | G85: 1800 | H85: =B85*IF($K$28=1,IF(Ajánlat1!$J$139=2,Adatközlő!G85,Adatközlő!F85),IF(Ajánlat1!$J$139=2,Adatközlő!$G$131,Adatközlő!$F$131)) -> 0
A86: =IF(B86>0,COUNTIF($I$6:I86,1),"") ->  | C86: eü. szakoktató | F86: 1500 | G86: 1800 | H86: =B86*IF($K$28=1,IF(Ajánlat1!$J$139=2,Adatközlő!G86,Adatközlő!F86),IF(Ajánlat1!$J$139=2,Adatközlő!$G$131,Adatközlő!$F$131)) -> 0
A87: =IF(B87>0,COUNTIF($I$6:I87,1),"") ->  | C87: eü. menedzser | F87: 1500 | G87: 1800 | H87: =B87*IF($K$28=1,IF(Ajánlat1!$J$139=2,Adatközlő!G87,Adatközlő!F87),IF(Ajánlat1!$J$139=2,Adatközlő!$G$131,Adatközlő!$F$131)) -> 0
A88: =IF(B88>0,COUNTIF($I$6:I88,1),"") ->  | C88: élelmezésvezető | F88: 1500 | G88: 1800 | H88: =B88*IF($K$28=1,IF(Ajánlat1!$J$139=2,Adatközlő!G88,Adatközlő!F88),IF(Ajánlat1!$J$139=2,Adatközlő!$G$131,Adatközlő!$F$131)) -> 0
A89: =IF(B89>0,COUNTIF($I$6:I89,1),"") ->  | C89: gondozó | F89: 1500 | G89: 1800 | H89: =B89*IF($K$28=1,IF(Ajánlat1!$J$139=2,Adatközlő!G89,Adatközlő!F89),IF(Ajánlat1!$J$139=2,Adatközlő!$G$131,Adatközlő!$F$131)) -> 0
A90: =IF(B90>0,COUNTIF($I$6:I90,1),"") ->  | C90: gyógymasszőr | F90: 1500 | G90: 1800 | H90: =B90*IF($K$28=1,IF(Ajánlat1!$J$139=2,Adatközlő!G90,Adatközlő!F90),IF(Ajánlat1!$J$139=2,Adatközlő!$G$131,Adatközlő!$F$131)) -> 0
A91: =IF(B91>0,COUNTIF($I$6:I91,1),"") ->  | C91: gyógytornász | F91: 1500 | G91: 1800 | H91: =B91*IF($K$28=1,IF(Ajánlat1!$J$139=2,Adatközlő!G91,Adatközlő!F91),IF(Ajánlat1!$J$139=2,Adatközlő!$G$131,Adatközlő!$F$131)) -> 0
A92: =IF(B92>0,COUNTIF($I$6:I92,1),"") ->  | C92: nővér | F92: 1500 | G92: 1800 | H92: =B92*IF($K$28=1,IF(Ajánlat1!$J$139=2,Adatközlő!G92,Adatközlő!F92),IF(Ajánlat1!$J$139=2,Adatközlő!$G$131,Adatközlő!$F$131)) -> 0
A93: =IF(B93>0,COUNTIF($I$6:I93,1),"") ->  | C93: optometrista | F93: 1500 | G93: 1800 | H93: =B93*IF($K$28=1,IF(Ajánlat1!$J$139=2,Adatközlő!G93,Adatközlő!F93),IF(Ajánlat1!$J$139=2,Adatközlő!$G$131,Adatközlő!$F$131)) -> 0
A94: =IF(B94>0,COUNTIF($I$6:I94,1),"") ->  | C94: szakaszisztens | F94: 1500 | G94: 1800 | H94: =B94*IF($K$28=1,IF(Ajánlat1!$J$139=2,Adatközlő!G94,Adatközlő!F94),IF(Ajánlat1!$J$139=2,Adatközlő!$G$131,Adatközlő!$F$131)) -> 0
A95: =IF(B95>0,COUNTIF($I$6:I95,1),"") ->  | C95: szakápoló | F95: 1500 | G95: 1800 | H95: =B95*IF($K$28=1,IF(Ajánlat1!$J$139=2,Adatközlő!G95,Adatközlő!F95),IF(Ajánlat1!$J$139=2,Adatközlő!$G$131,Adatközlő!$F$131)) -> 0
A96: =IF(B96>0,COUNTIF($I$6:I96,1),"") ->  | C96: szakgondozó | F96: 1500 | G96: 1800 | H96: =B96*IF($K$28=1,IF(Ajánlat1!$J$139=2,Adatközlő!G96,Adatközlő!F96),IF(Ajánlat1!$J$139=2,Adatközlő!$G$131,Adatközlő!$F$131)) -> 0
A97: =IF(B97>0,COUNTIF($I$6:I97,1),"") ->  | C97: védőnő | F97: 1500 | G97: 1800 | H97: =B97*IF($K$28=1,IF(Ajánlat1!$J$139=2,Adatközlő!G97,Adatközlő!F97),IF(Ajánlat1!$J$139=2,Adatközlő!$G$131,Adatközlő!$F$131)) -> 0
B98: Gyógyászati segédeszköz forgalmazási, javítási, kölcsönzési tevékenyéséget folytatók:
A99: =IF(B99>0,COUNTIF($I$6:I99,1),"") ->  | C99: Gyógyászati segédeszköz forgalmazás, javítás, kölcsönzés | F99: 5500 | G99: 7000 | H99: =B99*IF(Ajánlat1!$J$139=2,Adatközlő!G99,Adatközlő!F99) -> 0
B100: Gyógyszertári tevékenységet folytatók:
A101: =IF(B101>0,COUNTIF($I$6:I101,1),"") ->  | C101: Gyógyszerész | F101: 19000 | G101: 24000 | H101: =B101*IF(Ajánlat1!$J$139=2,Adatközlő!G101,Adatközlő!F101) -> 0
A102: =IF(B102>0,COUNTIF($I$6:I102,1),"") ->  | C102: Gyógyszerész-asszisztens | F102: 1500 | G102: 1800 | H102: =B102*IF(B101>0,IF(Ajánlat1!$J$139=2,Adatközlő!G102,Adatközlő!F102),IF(Ajánlat1!$J$139=2,Adatközlő!G131,Adatközlő!F131)) -> 0
B103: Szociális gondozói tevékenységet folytatók:
A104: =IF(B104>0,COUNTIF($I$6:I104,1),"") ->  | C104: Szociális gondozó | F104: 5500 | G104: 7000 | H104: =B104*IF(Ajánlat1!$J$139=2,Adatközlő!G104,Adatközlő!F104) -> 0
B105: Orvos-természetgyógyász tevékenységet folytatók:
A106: =IF(B106>0,COUNTIF($I$6:I106,1),"") ->  | C106: biorezonancián alapuló eljárások | F106: 39000 | G106: 46000 | H106: =B106*IF(Ajánlat1!$J$139=2,Adatközlő!G106,Adatközlő!F106) -> 0
A107: =IF(B107>0,COUNTIF($I$6:I107,1),"") ->  | C107: hagyományos kínai orvoslás | F107: 39000 | G107: 46000 | H107: =B107*IF(Ajánlat1!$J$139=2,Adatközlő!G107,Adatközlő!F107) -> 0
A108: =IF(B108>0,COUNTIF($I$6:I108,1),"") ->  | C108: homeopátiás eljárások | F108: 39000 | G108: 46000 | H108: =B108*IF(Ajánlat1!$J$139=2,Adatközlő!G108,Adatközlő!F108) -> 0
A109: =IF(B109>0,COUNTIF($I$6:I109,1),"") ->  | C109: indiai gyógyászati eljárások | F109: 39000 | G109: 46000 | H109: =B109*IF(Ajánlat1!$J$139=2,Adatközlő!G109,Adatközlő!F109) -> 0
A110: =IF(B110>0,COUNTIF($I$6:I110,1),"") ->  | C110: manuálterápiás eljárások | F110: 39000 | G110: 46000 | H110: =B110*IF(Ajánlat1!$J$139=2,Adatközlő!G110,Adatközlő!F110) -> 0
A111: =IF(B111>0,COUNTIF($I$6:I111,1),"") ->  | C111: méregtelenítő módok | F111: 39000 | G111: 46000 | H111: =B111*IF(Ajánlat1!$J$139=2,Adatközlő!G111,Adatközlő!F111) -> 0
A112: =IF(B112>0,COUNTIF($I$6:I112,1),"") ->  | C112: neurálterápiás módszerek | F112: 39000 | G112: 46000 | H112: =B112*IF(Ajánlat1!$J$139=2,Adatközlő!G112,Adatközlő!F112) -> 0
A113: =IF(B113>0,COUNTIF($I$6:I113,1),"") ->  | C113: tibeti gyógyászati eljárások | F113: 39000 | G113: 46000 | H113: =B113*IF(Ajánlat1!$J$139=2,Adatközlő!G113,Adatközlő!F113) -> 0
A114: =IF(B114>0,COUNTIF($I$6:I114,1),"") ->  | C114: vér oxigenizálásán alapuló terápiák | F114: 39000 | G114: 46000 | H114: =B114*IF(Ajánlat1!$J$139=2,Adatközlő!G114,Adatközlő!F114) -> 0
B115: Természetgyógyász tevékenységet folytatók:
A116: =IF(B116>0,COUNTIF($I$6:I116,1),"") ->  | C116: természetgyógyászat - bioenergiát alkalmazó módszerek | F116: 19000 | G116: 24000 | H116: =B116*IF(Ajánlat1!$J$139=2,Adatközlő!G116,Adatközlő!F116) -> 0
A117: =IF(B117>0,COUNTIF($I$6:I117,1),"") ->  | C117: természetgyógyászat - kineziológiai módszerek | F117: 19000 | G117: 24000 | H117: =B117*IF(Ajánlat1!$J$139=2,Adatközlő!G117,Adatközlő!F117) -> 0
A118: =IF(B118>0,COUNTIF($I$6:I118,1),"") ->  | C118: természetgyógyászat - szemtréning eljárások | F118: 19000 | G118: 24000 | H118: =B118*IF(Ajánlat1!$J$139=2,Adatközlő!G118,Adatközlő!F118) -> 0
A119: =IF(B119>0,COUNTIF($I$6:I119,1),"") ->  | C119: természetgyógyászat - alternatív fizioterápia | F119: 23500 | G119: 29000 | H119: =B119*IF(Ajánlat1!$J$139=2,Adatközlő!G119,Adatközlő!F119) -> 0
A120: =IF(B120>0,COUNTIF($I$6:I120,1),"") ->  | C120: természetgyógyászat - életmód tanácsadás és terápia | F120: 23500 | G120: 29000 | H120: =B120*IF(Ajánlat1!$J$139=2,Adatközlő!G120,Adatközlő!F120) -> 0
A121: =IF(B121>0,COUNTIF($I$6:I121,1),"") ->  | C121: természetgyógyászat - fitoterápia | F121: 23500 | G121: 29000 | H121: =B121*IF(Ajánlat1!$J$139=2,Adatközlő!G121,Adatközlő!F121) -> 0
A122: =IF(B122>0,COUNTIF($I$6:I122,1),"") ->  | C122: természetgyógyászat - fülakupunktúrás addiktológiai eljárások | F122: 23500 | G122: 29000 | H122: =B122*IF(Ajánlat1!$J$139=2,Adatközlő!G122,Adatközlő!F122) -> 0
A123: =IF(B123>0,COUNTIF($I$6:I123,1),"") ->  | C123: természetgyógyászat - reflexzóna terápia | F123: 23500 | G123: 29000 | H123: =B123*IF(Ajánlat1!$J$139=2,Adatközlő!G123,Adatközlő!F123) -> 0
A124: =IF(B124>0,COUNTIF($I$6:I124,1),"") ->  | C124: természetgyógyászat - akupresszúra | F124: 33500 | G124: 40000 | H124: =B124*IF(Ajánlat1!$J$139=2,Adatközlő!G124,Adatközlő!F124) -> 0
A125: =IF(B125>0,COUNTIF($I$6:I125,1),"") ->  | C125: természetgyógyászat - alternatív mozgás– és masszázsterápiák | F125: 33500 | G125: 40000 | H125: =B125*IF(Ajánlat1!$J$139=2,Adatközlő!G125,Adatközlő!F125) -> 0
A126: =IF(B126>0,COUNTIF($I$6:I126,1),"") ->  | C126: természetgyógyászat - gyógytornászok által végezhető manuálterápiás eljárások | F126: 33500 | G126: 40000 | H126: =B126*IF(Ajánlat1!$J$139=2,Adatközlő!G126,Adatközlő!F126) -> 0
B127: Állatorvosi tevékenységet folytatók:
A128: =IF(B128>0,COUNTIF($I$6:I128,1),"") ->  | C128: állatorvoslás (nem haszonállatok orvoslása műtéti tevékenység nélkül) | F128: 13500 | G128: 16000 | H128: =B128*IF(Ajánlat1!$J$139=2,Adatközlő!G128,Adatközlő!F128) -> 0
A129: =IF(B129>0,COUNTIF($I$6:I129,1),"") ->  | C129: állatorvoslás (nem haszonállatok orvoslása, műtéti tevékenységgel) | F129: 33500 | G129: 40000 | H129: =B129*IF(Ajánlat1!$J$139=2,Adatközlő!G129,Adatközlő!F129) -> 0
A130: =IF(B130>0,COUNTIF($I$6:I130,1),"") ->  | C130: állatorvos-egészségügyi szakszemélyzet (orvossal együtt kötött szerződés esetén) | F130: 1500 | G130: 1800 | H130: =B130*IF(K28=1,IF(Ajánlat1!$J$139=2,Adatközlő!G130,Adatközlő!F130),IF(Ajánlat1!$J$139=2,Adatközlő!$G$131,Adatközlő!$F$131)) -> 0
B131: =SUM(B6:B130) -> 0 | F131: 5500 | G131: 7000

Sheet Ajánlat1
C5: Kötvényszám:
AY6: UNION - Járóbeteg-szakellátás egészségügyi felelősségbiztosítás
AY7: Biztosítási Ajánlat
B8: FIGYELEMFELHÍVÁS! 1. CSAK A BIZTOSÍTOTT SAJÁT NEVÉBEN NYÚJTOTT MAGÁN EGÉSZSÉGÜGYI SZOLGÁLTATÁSA BIZTOSÍTHATÓ, ALKALMAZOTTI, VAGY (AL)VÁLLALKOZÓI JOGVISZONYÁRA A FEDEZET NEM TERJED KI! 2. FEKVŐBETEG ELLÁTÁSI TEVÉKENYSÉG NEM BIZTOSÍTHATÓ! 3. HASZONÁLLAT ORVOSLÁSA NEM BIZTOSÍTHATÓ!
C10: Módozat | F10: 7810 | L10: Üzletkötő neve: | AF10: Üzletkötő kódja:
C11: Átdolgozás: | G11: nem | P11: Előzmény kötv.száma: | X11: Adóigazgatási szám: 1049 1984-2-44 | AN11: Ajánlat azonosító:
C12: Készítette: | R12: =CONCATENATE(" Tel: ",IFERROR(VLOOKUP(G12,D183:K196,7,FALSE),"")," E-mail: ",IFERROR(VLOOKUP(G12,D183:K196,4,FALSE),"")) -> Tel: E-mail: | AM12: Hiv.szám:
C15: Szerződő / Biztosított neve:
C17: Adószáma: | V17: Tel: | AJ17: E-mail:
C19: Székhelye:
G20: ir.sz. | U20: helység | AM20: közterület | AU20: hsz.em.ajtó
C22: Levelezési Címe:
G23: ir.sz. | U23: helység | AM23: közterület | AU23: hsz.em.ajtó
C25: Biztosított szakágak: | AJ25: Létszám | AQ25: Díj
E26: =VLOOKUP(1,Adatközlő!$A$6:$D$130,3,FALSE) ->  | AJ26: =IFERROR(IF(VLOOKUP(1,Adatközlő!$A$6:$D$130,2,FALSE)=0,"",VLOOKUP(1,Adatközlő!$A$6:$D$130,2,FALSE)),0) -> 0 | AQ26: =IFERROR(IF(VLOOKUP(1,Adatközlő!$A$6:$H$130,8,FALSE)=0,"",IF(AND(summavalodidij<10000,J139=1),10000,IF(AND(J139=2,summavalodidij<13000),13000,VLOOKUP(1,Adatközlő!$A$6:$H$130,8,FALSE)))),0) -> 0
E27: =VLOOKUP(2,Adatközlő!$A$6:$D$130,3,FALSE) ->  | AJ27: =IFERROR(IF(VLOOKUP(2,Adatközlő!$A$6:$D$130,2,FALSE)=0,"",VLOOKUP(2,Adatközlő!$A$6:$D$130,2,FALSE)),0) -> 0 | AQ27: =IFERROR(IF(VLOOKUP(2,Adatközlő!$A$6:$H$130,8,FALSE)=0,"",VLOOKUP(2,Adatközlő!$A$6:$H$130,8,FALSE)),0) -> 0
E28: =VLOOKUP(3,Adatközlő!$A$6:$D$130,3,FALSE) ->  | AJ28: =IFERROR(IF(VLOOKUP(3,Adatközlő!$A$6:$D$130,2,FALSE)=0,"",VLOOKUP(3,Adatközlő!$A$6:$D$130,2,FALSE)),0) -> 0 | AQ28: =IFERROR(IF(VLOOKUP(3,Adatközlő!$A$6:$H$130,8,FALSE)=0,"",VLOOKUP(3,Adatközlő!$A$6:$H$130,8,FALSE)),0) -> 0
E29: =VLOOKUP(4,Adatközlő!$A$6:$D$130,3,FALSE) ->  | AJ29: =IFERROR(IF(VLOOKUP(4,Adatközlő!$A$6:$D$130,2,FALSE)=0,"",VLOOKUP(4,Adatközlő!$A$6:$D$130,2,FALSE)),0) -> 0 | AQ29: =IFERROR(IF(VLOOKUP(4,Adatközlő!$A$6:$H$130,8,FALSE)=0,"",VLOOKUP(4,Adatközlő!$A$6:$H$130,8,FALSE)),0) -> 0
E30: =VLOOKUP(5,Adatközlő!$A$6:$D$130,3,FALSE) ->  | AJ30: =IFERROR(IF(VLOOKUP(5,Adatközlő!$A$6:$D$130,2,FALSE)=0,"",VLOOKUP(5,Adatközlő!$A$6:$D$130,2,FALSE)),0) -> 0 | AQ30: =IFERROR(IF(VLOOKUP(5,Adatközlő!$A$6:$H$130,8,FALSE)=0,"",VLOOKUP(5,Adatközlő!$A$6:$H$130,8,FALSE)),0) -> 0
E31: =VLOOKUP(6,Adatközlő!$A$6:$D$130,3,FALSE) ->  | AJ31: =IFERROR(IF(VLOOKUP(6,Adatközlő!$A$6:$D$130,2,FALSE)=0,"",VLOOKUP(6,Adatközlő!$A$6:$D$130,2,FALSE)),0) -> 0 | AQ31: =IFERROR(IF(VLOOKUP(6,Adatközlő!$A$6:$H$130,8,FALSE)=0,"",VLOOKUP(6,Adatközlő!$A$6:$H$130,8,FALSE)),0) -> 0
E32: =VLOOKUP(7,Adatközlő!$A$6:$D$130,3,FALSE) ->  | AJ32: =IFERROR(IF(VLOOKUP(7,Adatközlő!$A$6:$D$130,2,FALSE)=0,"",VLOOKUP(7,Adatközlő!$A$6:$D$130,2,FALSE)),0) -> 0 | AQ32: =IFERROR(IF(VLOOKUP(7,Adatközlő!$A$6:$H$130,8,FALSE)=0,"",VLOOKUP(7,Adatközlő!$A$6:$H$130,8,FALSE)),0) -> 0
E33: =VLOOKUP(8,Adatközlő!$A$6:$D$130,3,FALSE) ->  | AJ33: =IFERROR(IF(VLOOKUP(8,Adatközlő!$A$6:$D$130,2,FALSE)=0,"",VLOOKUP(8,Adatközlő!$A$6:$D$130,2,FALSE)),0) -> 0 | AQ33: =IFERROR(IF(VLOOKUP(8,Adatközlő!$A$6:$H$130,8,FALSE)=0,"",VLOOKUP(8,Adatközlő!$A$6:$H$130,8,FALSE)),0) -> 0
E34: =VLOOKUP(9,Adatközlő!$A$6:$D$130,3,FALSE) ->  | AJ34: =IFERROR(IF(VLOOKUP(9,Adatközlő!$A$6:$D$130,2,FALSE)=0,"",VLOOKUP(9,Adatközlő!$A$6:$D$130,2,FALSE)),0) -> 0 | AQ34: =IFERROR(IF(VLOOKUP(9,Adatközlő!$A$6:$H$130,8,FALSE)=0,"",VLOOKUP(9,Adatközlő!$A$6:$H$130,8,FALSE)),0) -> 0
E35: =VLOOKUP(10,Adatközlő!$A$6:$D$130,3,FALSE) ->  | AJ35: =IFERROR(IF(VLOOKUP(10,Adatközlő!$A$6:$D$130,2,FALSE)=0,"",VLOOKUP(10,Adatközlő!$A$6:$D$130,2,FALSE)),0) -> 0 | AQ35: =IFERROR(IF(VLOOKUP(10,Adatközlő!$A$6:$H$130,8,FALSE)=0,"",VLOOKUP(10,Adatközlő!$A$6:$H$130,8,FALSE)),0) -> 0
E36: =VLOOKUP(11,Adatközlő!$A$6:$D$130,3,FALSE) ->  | AJ36: =IFERROR(IF(VLOOKUP(11,Adatközlő!$A$6:$D$130,2,FALSE)=0,"",VLOOKUP(11,Adatközlő!$A$6:$D$130,2,FALSE)),0) -> 0 | AQ36: =IFERROR(IF(VLOOKUP(11,Adatközlő!$A$6:$H$130,8,FALSE)=0,"",VLOOKUP(11,Adatközlő!$A$6:$H$130,8,FALSE)),0) -> 0
E37: =VLOOKUP(12,Adatközlő!$A$6:$D$130,3,FALSE) ->  | AJ37: =IFERROR(IF(VLOOKUP(12,Adatközlő!$A$6:$D$130,2,FALSE)=0,"",VLOOKUP(12,Adatközlő!$A$6:$D$130,2,FALSE)),0) -> 0 | AQ37: =IFERROR(IF(VLOOKUP(12,Adatközlő!$A$6:$H$130,8,FALSE)=0,"",VLOOKUP(12,Adatközlő!$A$6:$H$130,8,FALSE)),0) -> 0
E38: =VLOOKUP(13,Adatközlő!$A$6:$D$130,3,FALSE) ->  | AJ38: =IFERROR(IF(VLOOKUP(13,Adatközlő!$A$6:$D$130,2,FALSE)=0,"",VLOOKUP(13,Adatközlő!$A$6:$D$130,2,FALSE)),0) -> 0 | AQ38: =IFERROR(IF(VLOOKUP(13,Adatközlő!$A$6:$H$130,8,FALSE)=0,"",VLOOKUP(13,Adatközlő!$A$6:$H$130,8,FALSE)),0) -> 0
E39: =VLOOKUP(14,Adatközlő!$A$6:$D$130,3,FALSE) ->  | AJ39: =IFERROR(IF(VLOOKUP(14,Adatközlő!$A$6:$D$130,2,FALSE)=0,"",VLOOKUP(14,Adatközlő!$A$6:$D$130,2,FALSE)),0) -> 0 | AQ39: =IFERROR(IF(VLOOKUP(14,Adatközlő!$A$6:$H$130,8,FALSE)=0,"",VLOOKUP(14,Adatközlő!$A$6:$H$130,8,FALSE)),0) -> 0
E40: =VLOOKUP(15,Adatközlő!$A$6:$D$130,3,FALSE) ->  | AJ40: =IFERROR(IF(VLOOKUP(15,Adatközlő!$A$6:$D$130,2,FALSE)=0,"",VLOOKUP(15,Adatközlő!$A$6:$D$130,2,FALSE)),0) -> 0 | AQ40: =IFERROR(IF(VLOOKUP(15,Adatközlő!$A$6:$H$130,8,FALSE)=0,"",VLOOKUP(15,Adatközlő!$A$6:$H$130,8,FALSE)),0) -> 0
E41: =VLOOKUP(16,Adatközlő!$A$6:$D$130,3,FALSE) ->  | AJ41: =IFERROR(IF(VLOOKUP(16,Adatközlő!$A$6:$D$130,2,FALSE)=0,"",VLOOKUP(16,Adatközlő!$A$6:$D$130,2,FALSE)),0) -> 0 | AQ41: =IFERROR(IF(VLOOKUP(16,Adatközlő!$A$6:$H$130,8,FALSE)=0,"",VLOOKUP(16,Adatközlő!$A$6:$H$130,8,FALSE)),0) -> 0
E42: =VLOOKUP(17,Adatközlő!$A$6:$D$130,3,FALSE) ->  | AJ42: =IFERROR(IF(VLOOKUP(17,Adatközlő!$A$6:$D$130,2,FALSE)=0,"",VLOOKUP(17,Adatközlő!$A$6:$D$130,2,FALSE)),0) -> 0 | AQ42: =IFERROR(IF(VLOOKUP(17,Adatközlő!$A$6:$H$130,8,FALSE)=0,"",VLOOKUP(17,Adatközlő!$A$6:$H$130,8,FALSE)),0) -> 0
E43: =VLOOKUP(18,Adatközlő!$A$6:$D$130,3,FALSE) ->  | AJ43: =IFERROR(IF(VLOOKUP(18,Adatközlő!$A$6:$D$130,2,FALSE)=0,"",VLOOKUP(18,Adatközlő!$A$6:$D$130,2,FALSE)),0) -> 0 | AQ43: =IFERROR(IF(VLOOKUP(18,Adatközlő!$A$6:$H$130,8,FALSE)=0,"",VLOOKUP(18,Adatközlő!$A$6:$H$130,8,FALSE)),0) -> 0
E44: =VLOOKUP(19,Adatközlő!$A$6:$D$130,3,FALSE) ->  | AJ44: =IFERROR(IF(VLOOKUP(19,Adatközlő!$A$6:$D$130,2,FALSE)=0,"",VLOOKUP(19,Adatközlő!$A$6:$D$130,2,FALSE)),0) -> 0 | AQ44: =IFERROR(IF(VLOOKUP(19,Adatközlő!$A$6:$H$130,8,FALSE)=0,"",VLOOKUP(19,Adatközlő!$A$6:$H$130,8,FALSE)),0) -> 0
E45: =VLOOKUP(20,Adatközlő!$A$6:$D$130,3,FALSE) ->  | AJ45: =IFERROR(IF(VLOOKUP(20,Adatközlő!$A$6:$D$130,2,FALSE)=0,"",VLOOKUP(20,Adatközlő!$A$6:$D$130,2,FALSE)),0) -> 0 | AQ45: =IFERROR(IF(VLOOKUP(20,Adatközlő!$A$6:$H$130,8,FALSE)=0,"",VLOOKUP(20,Adatközlő!$A$6:$H$130,8,FALSE)),0) -> 0
AG46: Összesen: | AJ46: =SUM(AJ26:AK45) -> 0
C47: Kockázatviselés helye (rendelő címe):
C49: 1.) | H49: ir.sz. | V49: helység | AM49: közterület | AU49: hsz.em.ajtó
C51: 2.) | H51: ir.sz. | V51: helység | AM51: közterület | AU51: hsz.em.ajtó
C53: 3.) | H53: ir.sz. | V53: helység | AM53: közterület | AU53: hsz.em.ajtó
C55: 4.) | H55: ir.sz. | V55: helység | AM55: közterület | AU55: hsz.em.ajtó
C57: 5.) | H57: ir.sz. | V57: helység | AM57: közterület | AU57: hsz.em.ajtó
C63: Területi hatály: | K63: Magyarország
C65: Biztosítás tartama: | K65: határozatlan, melyen belül a biztosítási időszak 1 év
C67: Biztosítási évforduló: | K67: minden évben a kockázatviselés kezdetének napja, ha ez a nap február 29-e, akkor minden év március 01. napja
C69: Kockázatviselés kezdete:
C71: Díjfizetés gyakorisága:
C73: Díjfizetés módja: | K73: a biztosító által kiállított számviteli bizonylat alapján, átutalással
C75: Limit:
C77: Önrész: | K77: 10%, de min. 50 000 Ft / kár
O89: Biztosítási díjösszesítő
Q91: Kis- és középvállalkozások felelősségbiztosítása | AF91: =IFERROR(C170,0) -> 0
Q93: Éves díj összesen: | AF93: =IF(OR(K75=""),0,SUM(AQ26:AT45)) -> 0
Q95: Volumenkedvezmény: | AF95: =1-IFERROR(VLOOKUP(Adatközlő!B131,Adatközlő!L5:M24,2,FALSE),0) -> 1
Q97: Díjfizetési gyakoriság miatti engedmény: | AF97: 0
Q99: Engedménnyel csökkentett éves díj: | AF99: =IF(AF93=0,0,IF((AF93*(1-AF97)*(1-AF95))>10000,(AF93*(1-AF97)*(1-AF95)),10000)) -> 0
Q101: Gyakoriságnak megfelelő díj: | AF101: =IF(K71="féléves",AF99*0.5,IF(K71="negyedéves",AF99*0.25,IF(K71="",0,AF99))) -> 0
N104: A biztosított három alábbi mutatója közül legalább kettő meghaladja-e a következő értékeket:
N105: Mérleg főösszege az 1,5 mrd. Ft-ot
N106: Nettó üzleti forgalma a 3 mrd. Ft-ot
N107: Átlagos alkalmazotti létszám az 1.000 főt
N109: Ezúton nyilatkozom, hogy Társaságunk :
N114: minősül.
C128: Kelt: | E128: =szerz.lakcimhelyseg -> 0 | L128: , | M128: =TODAY() -> 2021-07-01
T129: Biztosításközvetítő aláírása | AK129: Szerződő cégszerű aláírása
C132: igen
C133: nem
AN134: 1 cím
C135: éves | F135: éves | AN135: 2 cím | AQ135: 1 cím | AS135: 1
C136: féléves | AN136: 3 cím
C137: negyedéves | AN137: 4 cím
V138: Valódi díj | AN138: 5 cím
C139: 5 M Ft / kár, 15 M Ft / év | J139: =IF(K75=C139,1,IF(K75=C140,2,0)) -> 0
C140: 10 M Ft / kár, 20 M Ft / év | P140: 1 | S140: =IFERROR(IF(VLOOKUP(P140,Adatközlő!$A$6:$H$130,8,FALSE)=0,"",VLOOKUP(P140,Adatközlő!$A$6:$H$130,8,FALSE)),0) -> 0
P141: 2 | S141: =IFERROR(IF(VLOOKUP(P141,Adatközlő!$A$6:$H$130,8,FALSE)=0,"",VLOOKUP(P141,Adatközlő!$A$6:$H$130,8,FALSE)),0) -> 0
P142: 3 | S142: =IFERROR(IF(VLOOKUP(P142,Adatközlő!$A$6:$H$130,8,FALSE)=0,"",VLOOKUP(P142,Adatközlő!$A$6:$H$130,8,FALSE)),0) -> 0
P143: 4 | S143: =IFERROR(IF(VLOOKUP(P143,Adatközlő!$A$6:$H$130,8,FALSE)=0,"",VLOOKUP(P143,Adatközlő!$A$6:$H$130,8,FALSE)),0) -> 0
P144: 5 | S144: =IFERROR(IF(VLOOKUP(P144,Adatközlő!$A$6:$H$130,8,FALSE)=0,"",VLOOKUP(P144,Adatközlő!$A$6:$H$130,8,FALSE)),0) -> 0
P145: 6 | S145: =IFERROR(IF(VLOOKUP(P145,Adatközlő!$A$6:$H$130,8,FALSE)=0,"",VLOOKUP(P145,Adatközlő!$A$6:$H$130,8,FALSE)),0) -> 0
P146: 7 | S146: =IFERROR(IF(VLOOKUP(P146,Adatközlő!$A$6:$H$130,8,FALSE)=0,"",VLOOKUP(P146,Adatközlő!$A$6:$H$130,8,FALSE)),0) -> 0
P147: 8 | S147: =IFERROR(IF(VLOOKUP(P147,Adatközlő!$A$6:$H$130,8,FALSE)=0,"",VLOOKUP(P147,Adatközlő!$A$6:$H$130,8,FALSE)),0) -> 0 | AO147: Kötvény?
P148: 9 | S148: =IFERROR(IF(VLOOKUP(P148,Adatközlő!$A$6:$H$130,8,FALSE)=0,"",VLOOKUP(P148,Adatközlő!$A$6:$H$130,8,FALSE)),0) -> 0 | AO148: FALSE
P149: 10 | S149: =IFERROR(IF(VLOOKUP(P149,Adatközlő!$A$6:$H$130,8,FALSE)=0,"",VLOOKUP(P149,Adatközlő!$A$6:$H$130,8,FALSE)),0) -> 0
P150: 11 | S150: =IFERROR(IF(VLOOKUP(P150,Adatközlő!$A$6:$H$130,8,FALSE)=0,"",VLOOKUP(P150,Adatközlő!$A$6:$H$130,8,FALSE)),0) -> 0
P151: 12 | S151: =IFERROR(IF(VLOOKUP(P151,Adatközlő!$A$6:$H$130,8,FALSE)=0,"",VLOOKUP(P151,Adatközlő!$A$6:$H$130,8,FALSE)),0) -> 0
P152: 13 | S152: =IFERROR(IF(VLOOKUP(P152,Adatközlő!$A$6:$H$130,8,FALSE)=0,"",VLOOKUP(P152,Adatközlő!$A$6:$H$130,8,FALSE)),0) -> 0
P153: 14 | S153: =IFERROR(IF(VLOOKUP(P153,Adatközlő!$A$6:$H$130,8,FALSE)=0,"",VLOOKUP(P153,Adatközlő!$A$6:$H$130,8,FALSE)),0) -> 0
P154: 15 | S154: =IFERROR(IF(VLOOKUP(P154,Adatközlő!$A$6:$H$130,8,FALSE)=0,"",VLOOKUP(P154,Adatközlő!$A$6:$H$130,8,FALSE)),0) -> 0
P155: 16 | S155: =IFERROR(IF(VLOOKUP(P155,Adatközlő!$A$6:$H$130,8,FALSE)=0,"",VLOOKUP(P155,Adatközlő!$A$6:$H$130,8,FALSE)),0) -> 0
P156: 17 | S156: =IFERROR(IF(VLOOKUP(P156,Adatközlő!$A$6:$H$130,8,FALSE)=0,"",VLOOKUP(P156,Adatközlő!$A$6:$H$130,8,FALSE)),0) -> 0
P157: 18 | S157: =IFERROR(IF(VLOOKUP(P157,Adatközlő!$A$6:$H$130,8,FALSE)=0,"",VLOOKUP(P157,Adatközlő!$A$6:$H$130,8,FALSE)),0) -> 0
P158: 19 | S158: =IFERROR(IF(VLOOKUP(P158,Adatközlő!$A$6:$H$130,8,FALSE)=0,"",VLOOKUP(P158,Adatközlő!$A$6:$H$130,8,FALSE)),0) -> 0
P159: 20 | S159: =IFERROR(IF(VLOOKUP(P159,Adatközlő!$A$6:$H$130,8,FALSE)=0,"",VLOOKUP(P159,Adatközlő!$A$6:$H$130,8,FALSE)),0) -> 0
V161: Summa valódi díj
S163: =SUM(S140:V159)*IF(volkedv=0,1,(1-volkedv)) -> 0
D179: Lejárati Dátum | I179: Verzió | L179: lejárati jelszó
D180: 2021-12-31 | I180: v1.96 | L180: felelosseg
D183: Ambrus Péter | G183: ambrus.peter@unionbiztosito.hu | J183: 666-7656
D184: Árokszállási Zoltán | G184: ajanlatkeres@unionbiztosito.hu | J184: 486-4366
D185: Csanádi Zoltán | G185: csanadi.zoltan@unionbiztosito.hu | J185: 486-4235
D186: Dobi László | G186: dobi.laszlogabor@unionbiztosito.hu | J186: 486-4346
D187: Hajdók Viktória | G187: hajdok.viktoria@unionbiztosito.hu | J187: 486-4213
D188: Klinger József | G188: klinger.jozsef@unionbiztosito.hu | J188: 486-4232
D189: Utry Oszkár | G189: ajanlatkeres@unionbiztosito.hu | J189: 666-7652

Sheet Ajánlat2
B1: Kis és középvállallatok felelősségbiztosítása | L1: SZÍNKÓDOK, MAGYARÁZATOK
B2: Biztosított kockázatok: | C2: Általános felelősségbiztosítás
C3: valamint:
B4: Szolgáltatói felelősségbiztosítás | L4: innentől választható / legördülő menü
B5: Szolgáltatói felelősség kiterjesztve a szolgáltatás tárgyára (egyedi záradék szerint) | L5: csak akkor választható, ha a szolg fel korábban kiválasztásra került
B6: Szolgáltatói felelősség kiterjesztve rakodási tevékenységre (egyedi záradék szerint) | L6: csak akkor választható, ha a szolg fel korábban kiválasztásra került
B7: Termékfelelősség-biztosítás
B8: Kiterjesztett termékfelelősség-biztosítás | L8: csak akkor választható, ha a term fel korábban kiválasztásra került
B9: Bérlői felelősségbiztosítás
B10: Bérbeadói felelősségbiztosítás
B11: Munkáltatói felelősségbiztosítás
B12: Környezetszennyezési felelősségbiztosítás
B13: Alvállalkozói fedezet (egyedi záradék szerint)
B14: Építőipari tevékenység fedezete (egyedi záradék szerint) | L14: ha 5-ös kock. osztály, ez feljön, ÉS az önrész kötelezően min. 10%, de min 100 000 Ft/kár
B15: Területi hatály kiterjesztése Európa (egyedi záradék szerint) | L15: ha Európa
B17: Dolgozói létszám: | D17: 14 | E17: fő | L17: opcionálisan (munk fel esetén) kitöltendő mező
B19: Díjszámítási alap (éves bruttó forgalom): | D19: 2465 | E19: MFt | L19: kötelezően kitöltendő mező
B21: Kombinált limit: | D21: 5 MFt/kár, 10 MFt/év | L21: választható limitek legördülő menüben
B24: Önrész: | D24: 10 %, de min. 25 000 Ft | L24: választható önrészek legördülő menüben
B26: Díjtétel: | D26: =D28/(D19*1000000)*100 -> 0 | L26: háttértábla (tarifáló) alapján
B28: Éves díj: | D28: =Ajánlat1!C170 -> 0 | L28: háttértábla (tariáfló) alapján
B30: Egészségügyi szolgáltatók szakmai felelősségbiztosítása
B32: Felelősségbiztosítások Szerződési Feltételei (U70060)
B33: Egészségügyi, gyógyszerészi, szociális, illetve természetgyógyászati szolgáltatói tevékenységet folytatók szakmai felelősségbiztosításának biztosítási feltételei (U70067)
B34: Szolgáltatói felelősségbiztosítás különös biztosítási feltételek | L34: ha építőipari tevékenység fedezetét választja, akkor ez jön föl az A38 helyett
B35: Általános felelősségbiztosítás feltételei, a 3./h.) pontban írt kizáró rendelkezés első fordulatának feloldása mellett azzal, hogy az épületek, építmények repedéseivel összefüggésben bekövetkezett károkra, valamint az épületben, építményben vibráció, vagy – a föld-, illetve egyéb támaszt is ideértve – teherhordó elem eltávolítása, meggyengítése, vagy megépítésének elmaradása miatt bekövetkező károkra vonatkozó kizárás változatlanul hatályban marad. | L35: innentől akkor jönnek föl, ha fent kiválasztásra kerültek
B36: Szolgáltatói felelősségbiztosítás különös feltételei, a 3./i.) pontban írt kizáró rendelkezés első fordulatának feloldása mellett azzal, hogy az épületek, építmények repedéseivel összefüggésben bekövetkezett károkra, valamint az épületben, építményben vibráció, vagy – a föld-, illetve egyéb támaszt is ideértve – teherhordó elem eltávolítása, meggyengítése, vagy megépítésének elmaradása miatt bekövetkező károkra vonatkozó kizárás változatlanul hatályban marad. | L36: ha építőipari tevékenység fedezetét választja, akkor ez jön föl az A41 helyett
B38: Szolgáltatás tárgyában okozott károk egyedi záradéka 1. A szolgáltatói felelősségbiztosítási fedezet - a Szolgáltatói felelősségbiztosítás különös feltételei 3.f.) pontjában, valamint e körben (a letéti felelősséget ide nem értve) a 3.e.) pontjában írt kizáró rendelkezések feloldása, de egyéb rendelkezései változatlan alkalmazása mellett - kiterjed azokban a dolgokban keletkezett károkra is, amelyek a szolgáltatás tárgyát képezik, illetve amelyekre a biztosított szolgáltatása irányul. 2. Nem terjed ki a biztosítási fedezet a) az olyan vagyontárgyak káraira, melyek a szolgáltatás megkezdésekor már sérültek, hibásak, elhasználódottak voltak, vagy egyéb okból cserére szorultak, b) az esztétikai károkra, c) a szolgáltatás korszerűtlenségével összefüggő kártérítési igényekre. A jelen egyedi záradékban nem szabályozott kérdések tekintetében a Felelősségbiztosítások Szerződési Feltételei, a Szolgáltatói felelősségbiztosítás különös biztosítási feltételei, valamint a mindenkor hatályos magyar jogszabályok vonatkozó rendelkezései irányadóak. | L38: a fedezet választása esetén "feljön"
B40: Rakodási szolgáltatást nyújtók felelősségbiztosításának egyedi záradéka A jelen Egyedi Záradék alkalmazásában biztosítási esemény az idegen gépjárműre, illetve gépjárműről történő le- és felrakodás során az idegen gépjárműben okozott dologi kár, abban az esetben is, ha a rakodás daruval, illetve targoncával történt. A fedezet kiterjed a telephelyen daruval, illetve targoncával harmadik személyeknek okozott egyéb dologi károkra is, ide nem értve a rakodott áruban okozott kárt. A jelen Egyedi Záradékban nem szabályozott kérdések tekintetében a Szolgáltatói felelősségbiztosítás különös feltételeinek rendelkezései irányadóak. | L40: a fedezet választása esetén "feljön"
B42: Termékfelelősség-biztosítás különös biztosítási feltételek (Hatályos: 2014.03.15-től) | L42: a fedezet választása esetén "feljön"
B43: Kiterjesztett termékfelelősség-biztosítás kiegészítő biztosítási feltételek (Hatályos: 2014.03.15-től) | L43: a fedezet választása esetén "feljön"
B44: Bérlői felelősségbiztosítás különös biztosítási feltételek | L44: a fedezet választása esetén "feljön"
B45: Bérbeadói felelősségbiztosítás különös biztosítási feltételek | L45: a fedezet választása esetén "feljön"
B46: Munkáltatói felelősségbiztosítás különös biztosítási feltételek (Hatályos: 2014.03.15-től) | L46: a fedezet választása esetén "feljön"
B47: Környezetszennyezési felelősségbiztosítás különös biztosítási feltételek | L47: a fedezet választása esetén "feljön"
B49: Az általános felelősségbiztosítási fedezet kiterjesztése alvállalkozókra Az általános felelősségbiztosítási fedezet a szerződésben írt limit erejéig, a vonatkozó feltételek változatlan alkalmazása mellett kiterjed a biztosított alvállalkozóira is, amennyiben a kárt a biztosított alvállalkozójaként eljárva, ebbéli minőségükben okozták. A jelen felelősségbiztosítási fedezet annyiban áll fönn, amennyiben a kár más biztosítási fedezet (elsődleges fedezet) alapján nem térül meg. A jelen felelősségbiztosítás elsődleges fedezet fennállta esetén a kárra csak annyiban nyújt fedezetet, amennyiben az elsődleges fedezet a biztosítási esemény bekövetkezte előtt bármely okból megszűnt, vagy a biztosítási feltételek eltérő rendelkezése miatt az elsődleges fedezet alapján szolgáltatás nyújtására nem kerül sor, vagy a limit alacsonyabb volta miatt az elsődleges fedezet alapján nyújtott szolgáltatás részleges. A biztosító által nyújtott alvállalkozói fedezet nem szélesebb, mint a vonatkozó feltételek alapján a biztosított számára nyújtott fedezet. Nem terjed ki a fedezet ezen alvállalkozók további alvállalkozóira, valamint a biztosítottak egymásnak okozott káraira. | L49: alvállalkozói fedezet esetén "feljön"
B51: A szolgáltatói felelősségbiztosítási fedezet kiterjesztése alvállalkozókra A szolgáltatói felelősségbiztosítási fedezet a szerződésben írt limit erejéig, a vonatkozó feltételek változatlan alkalmazása mellett kiterjed a biztosított alvállalkozóira is, amennyiben a kárt a biztosított alvállalkozójaként eljárva, ebbéli minőségükben okozták. A jelen felelősségbiztosítási fedezet annyiban áll fönn, amennyiben a kár más biztosítási fedezet (elsődleges fedezet) alapján nem térül meg. A jelen felelősségbiztosítás elsődleges fedezet fennállta esetén a kárra csak annyiban nyújt fedezetet, amennyiben az elsődleges fedezet a biztosítási esemény bekövetkezte előtt bármely okból megszűnt, vagy a biztosítási feltételek eltérő rendelkezése miatt az elsődleges fedezet alapján szolgáltatás nyújtására nem kerül sor, vagy a limit alacsonyabb volta miatt az elsődleges fedezet alapján nyújtott szolgáltatás részleges. A biztosító által nyújtott alvállalkozói fedezet nem szélesebb, mint a vonatkozó feltételek alapján a biztosított számára nyújtott fedezet. Nem terjed ki a fedezet ezen alvállalkozók további alvállalkozóira, valamint a biztosítottak egymásnak okozott káraira. | L51: csak akkor jön fel, ha a szolg fel és az alvállalkozói fedezet korábban kiválasztásra került
B53: Építőipari tevékenység fedezetének egyedi záradéka
B54: A felelősségbiztosítási fedezet annyiban áll fönn, amennyiben a kár más biztosítási fedezet (elsődleges fedezet) alapján nem térül meg. A jelen felelősségbiztosítás elsődleges fedezet fennállta esetén a kárra csak annyiban nyújt fedezetet, amennyiben az elsődleges fedezet a biztosítási esemény bekövetkezte előtt bármely okból megszűnt, vagy a biztosítási feltételek eltérő rendelkezése miatt az elsődleges fedezet alapján szolgáltatás nyújtására nem kerül sor, vagy a limit alacsonyabb volta miatt az elsődleges fedezet alapján nyújtott szolgáltatás részleges.
B55: A biztosítási fedezet nem terjed ki az alábbi tevékenységekre:
B56: 1. bontási munka,
B57: 2. gépi földmunka,
B58: 3. tetőcsere, tetőjavítás, a héjazat megbontásával járó munka, tetőtér-beépítés,
B59: 4. ún. foghíjbeépítés,
B60: 5. mélyépítési tevékenység, illetve a vonalas létesítményeken végzett munkák, 6. az egyszerű bejelentéshez kötött építési tevékenységhez kapcsolódó fővállalkozói kivitelezői tevékenységre. | L60: 5-ös kockázati osztály esetén kötelező (feljön)
B62: A biztosítási fedezet területi hatályának kiterjesztése Európa területére | L62: Ha Európa
B63: A biztosítás területi hatálya kiterjed az Európa területén okozott, illetve bekövetkezett károkra is.
B65: EGYÉB
B67: A biztosítási szerződésre a fentiekben hivatkozott biztosítási feltételek és az ajánlatban foglalt egyedi záradékok együttesen vonatkoznak. A Biztosító nem nyújt fedezetet, nem teljesít kárkifizetést, valamint nem nyújt szolgáltatást, amennyiben ezen fedezet nyújtásával, illetve kár kifizetésével a Biztosító sértené az Egyesült Nemzetek Szervezetének határozata szerinti bármely szankcióit, rendelkezéseit, vagy rendeleteit, valamint Magyarország, az Európai Unió, illetve az Egyesült Államok kereskedelmi, pénzügyi embargóit vagy gazdasági szankcióit, törvényeit vagy rendeleteit, (feltéve, hogy ezek nem sértik az biztosítóra alkalmazandó szabályozásokat vagy nemzeti jogszabályokat). Nem terjed ki a biztosítás azokra a károkra, amelyek bármilyen (bakteriális, vírusos, stb.) kórokozói eredetű járványos megbetegedéssel, betegséggel, vagy fertőzéssel összefüggésben következnek be, és amelyek a kórokozó bármely fajtájától, mutációjától, illetve variánsától származnak.
B69: Díjfizetési engedmény:
B70: Amennyiben a szerződő/biztosított a biztosítási díjat az alábbi díjfizetési gyakorisággal egyenlíti ki, akkor a biztosító a számára a fentiekben megállapított biztosítási díjakból az alábbi díjfizetési engedményeket nyújtja:
B71: - éves díjfizetés esetén: 5,0%
B72: - féléves díjfizetés esetén: 2,5%.
B74: Ajánlatot teszek a túloldalon részletezett biztosításra, amelynek alapján az Union Vienna Insurance Group Biztosító Zrt. azt a kötelezettséget vállalja, hogy díjfizetés ellenében készpénzben megtéríti a különös feltételekben felsorolt biztosítási események során bekövetkező azon károkat, amelyekre a biztosítási szerződés kiterjed. Kijelentem, hogy az ajánlattétel előtt biztosítási igényem felmérése nyomán a vonatkozó termékismertetőt átvettem, áttanulmányoztam és megértettem, a jogszabályban előírt tájékoztatást megkaptam, a biztosítási feltételeket átvettem, áttanulmányoztam és megértettem. Kijelentem, hogy az Adatkezelési tájékoztató a biztosítási ajánlat aláírását megelőzően részemre átadásra került, és tudomással bírok arról, hogy ezen dokumentum a biztosító honlapján (www.union.hu) bármikor megtekinthető.
B76: Tudomásul veszem, hogy: | C76: - jelen ajánlat a biztosító kockázatelbírálásának alapja, továbbá, hogy a biztosítónak az ajánlat beérkezésétől számított 15 nap áll rendelkezésére a kockázat elbírálására,
C77: - a biztosító a kockázatelbírálás eredményeként az ajánlatot jogosult elutasítani, az elutasítást nem köteles megindokolni.
C78: - a biztosító kártérítése - betöréses lopás esetén - a kár időpontjában fennálló vagyonvédelmi színvonal függvényében történik
C79: - a biztosító a tényleges adatoktól való eltérés esetén az alul- és túlbiztosítottságot vizsgálja
B82: Kijelentem, hogy: | C82: - a Felelősségbiztosítások Szerződési Feltételeiben és az Egészségügyi, gyógyszerészi, szociális, illetve természetgyógyászati szolgáltatói tevékenységet folytatók szakmai felelősségbiztosításának feltételeiben foglaltakat az ajánlat aláírása előtt megismertem,
C83: - a közölt adatok a valóságnak megfelelnek,
C84: - jelen ajánlatomban minden biztosítási szándékommal kapcsolatos igényemet rögzítettek, más szóbeli megállapodás nem történt.
B86: ="Kelt: " & keltez & ", " & TEXT(keltdat, "ÉÉÉÉ.hh.nn") -> Kelt: 0, 2021.07.01
D87: Szerződő cégszerű aláírása
D88: UNION Vienna Insurance Group Biztosító Zrt.

Sheet Tevékenységi lista (hidden)
A1: Biztosított tevékenység: | B1: 5 / 15 | C1: 10 / 20
A2: addiktológia (szenvedélybetegségek orvoslása) | B2: 13500 | C2: 16000 | G2: =IF(--ISNUMBER(SEARCH(tev.lista,A2)),MAX($G$1:G1)+1,"") -> 1 | H2: =IFERROR(INDEX($A$2:$A$117,MATCH(ROWS($G$2:G2),$G$2:$G$117,0)),"") -> addiktológia (szenvedélybetegségek orvoslása) | J2: =$H$2:INDEX($H$2:$H$117,COUNTIF($H$2:$H$117,"?*")) -> addiktológia (szenvedélybetegségek orvoslása) | L2: =IF(J2=H2,1,0) -> 1
A3: állatorvos-egészségügyi szakszemélyzet (orvossal együtt kötött szerződés esetén) | B3: 1500 | C3: 1800 | G3: =IF(--ISNUMBER(SEARCH(tev.lista,A3)),MAX($G$1:G2)+1,"") -> 2 | H3: =IFERROR(INDEX($A$2:$A$117,MATCH(ROWS($G$2:G3),$G$2:$G$117,0)),"") -> állatorvos-egészségügyi szakszemélyzet (orvossal együtt kötött szerződés esetén)
A4: állatorvoslás (nem haszonállatok orvoslása műtéti tevékenység nélkül) | B4: 13500 | C4: 16000 | G4: =IF(--ISNUMBER(SEARCH(tev.lista,A4)),MAX($G$1:G3)+1,"") -> 3 | H4: =IFERROR(INDEX($A$2:$A$117,MATCH(ROWS($G$2:G4),$G$2:$G$117,0)),"") -> állatorvoslás (nem haszonállatok orvoslása műtéti tevékenység nélkül)
A5: állatorvoslás (nem haszonállatok orvoslása, műtéti tevékenységgel) | B5: 33500 | C5: 40000 | G5: =IF(--ISNUMBER(SEARCH(tev.lista,A5)),MAX($G$1:G4)+1,"") -> 4 | H5: =IFERROR(INDEX($A$2:$A$117,MATCH(ROWS($G$2:G5),$G$2:$G$117,0)),"") -> állatorvoslás (nem haszonállatok orvoslása, műtéti tevékenységgel)
A6: allergologia | B6: 19000 | C6: 23500 | G6: =IF(--ISNUMBER(SEARCH(tev.lista,A6)),MAX($G$1:G5)+1,"") -> 5 | H6: =IFERROR(INDEX($A$2:$A$117,MATCH(ROWS($G$2:G6),$G$2:$G$117,0)),"") -> allergologia
A7: általános orvos | B7: 33500 | C7: 40000 | G7: =IF(--ISNUMBER(SEARCH(tev.lista,A7)),MAX($G$1:G6)+1,"") -> 6 | H7: =IFERROR(INDEX($A$2:$A$117,MATCH(ROWS($G$2:G7),$G$2:$G$117,0)),"") -> általános orvos
A8: andrológia (férfi betegségek orvoslása) | B8: 33500 | C8: 40000 | G8: =IF(--ISNUMBER(SEARCH(tev.lista,A8)),MAX($G$1:G7)+1,"") -> 7 | H8: =IFERROR(INDEX($A$2:$A$117,MATCH(ROWS($G$2:G8),$G$2:$G$117,0)),"") -> andrológia (férfi betegségek orvoslása)
A9: ápoló | B9: 1500 | C9: 1800 | G9: =IF(--ISNUMBER(SEARCH(tev.lista,A9)),MAX($G$1:G8)+1,"") -> 8 | H9: =IFERROR(INDEX($A$2:$A$117,MATCH(ROWS($G$2:G9),$G$2:$G$117,0)),"") -> ápoló
A10: asszisztens | B10: 1500 | C10: 1800 | G10: =IF(--ISNUMBER(SEARCH(tev.lista,A10)),MAX($G$1:G9)+1,"") -> 9 | H10: =IFERROR(INDEX($A$2:$A$117,MATCH(ROWS($G$2:G10),$G$2:$G$117,0)),"") -> asszisztens
A11: audiológia (hallástan) | B11: 19000 | C11: 23500 | G11: =IF(--ISNUMBER(SEARCH(tev.lista,A11)),MAX($G$1:G10)+1,"") -> 10 | H11: =IFERROR(INDEX($A$2:$A$117,MATCH(ROWS($G$2:G11),$G$2:$G$117,0)),"") -> audiológia (hallástan)
A12: belgyógyász | B12: 33500 | C12: 40000 | G12: =IF(--ISNUMBER(SEARCH(tev.lista,A12)),MAX($G$1:G11)+1,"") -> 11 | H12: =IFERROR(INDEX($A$2:$A$117,MATCH(ROWS($G$2:G12),$G$2:$G$117,0)),"") -> belgyógyász
A13: betegszállító | B13: 1500 | C13: 1800 | G13: =IF(--ISNUMBER(SEARCH(tev.lista,A13)),MAX($G$1:G12)+1,"") -> 12 | H13: =IFERROR(INDEX($A$2:$A$117,MATCH(ROWS($G$2:G13),$G$2:$G$117,0)),"") -> betegszállító
A14: biorezonancián alapuló eljárások | B14: 39000 | C14: 46000 | G14: =IF(--ISNUMBER(SEARCH(tev.lista,A14)),MAX($G$1:G13)+1,"") -> 13 | H14: =IFERROR(INDEX($A$2:$A$117,MATCH(ROWS($G$2:G14),$G$2:$G$117,0)),"") -> biorezonancián alapuló eljárások
A15: boncmester | B15: 1500 | C15: 1800 | G15: =IF(--ISNUMBER(SEARCH(tev.lista,A15)),MAX($G$1:G14)+1,"") -> 14 | H15: =IFERROR(INDEX($A$2:$A$117,MATCH(ROWS($G$2:G15),$G$2:$G$117,0)),"") -> boncmester
A16: bőrgyógyász | B16: 33500 | C16: 40000 | G16: =IF(--ISNUMBER(SEARCH(tev.lista,A16)),MAX($G$1:G15)+1,"") -> 15 | H16: =IFERROR(INDEX($A$2:$A$117,MATCH(ROWS($G$2:G16),$G$2:$G$117,0)),"") -> bőrgyógyász
A17: bőrgyógyász egynapos sebészettel | B17: =B16*1.8 -> 60300 | C17: =C16*1.8 -> 72000 | G17: =IF(--ISNUMBER(SEARCH(tev.lista,A17)),MAX($G$1:G16)+1,"") -> 16 | H17: =IFERROR(INDEX($A$2:$A$117,MATCH(ROWS($G$2:G17),$G$2:$G$117,0)),"") -> bőrgyógyász egynapos sebészettel
A18: cytopatológia (kórszövettan) | B18: 33500 | C18: 40000 | G18: =IF(--ISNUMBER(SEARCH(tev.lista,A18)),MAX($G$1:G17)+1,"") -> 17 | H18: =IFERROR(INDEX($A$2:$A$117,MATCH(ROWS($G$2:G18),$G$2:$G$117,0)),"") -> cytopatológia (kórszövettan)
A19: csecsemő-gyermekgyógyász | B19: 33500 | C19: 40000 | G19: =IF(--ISNUMBER(SEARCH(tev.lista,A19)),MAX($G$1:G18)+1,"") -> 18 | H19: =IFERROR(INDEX($A$2:$A$117,MATCH(ROWS($G$2:G19),$G$2:$G$117,0)),"") -> csecsemő-gyermekgyógyász
A20: diabetológus | B20: 33500 | C20: 40000 | G20: =IF(--ISNUMBER(SEARCH(tev.lista,A20)),MAX($G$1:G19)+1,"") -> 19 | H20: =IFERROR(INDEX($A$2:$A$117,MATCH(ROWS($G$2:G20),$G$2:$G$117,0)),"") -> diabetológus
A21: dietetikus | B21: 1500 | C21: 1800 | G21: =IF(--ISNUMBER(SEARCH(tev.lista,A21)),MAX($G$1:G20)+1,"") -> 20 | H21: =IFERROR(INDEX($A$2:$A$117,MATCH(ROWS($G$2:G21),$G$2:$G$117,0)),"") -> dietetikus
A22: egészségbiztosítás | B22: 13500 | C22: 16000 | G22: =IF(--ISNUMBER(SEARCH(tev.lista,A22)),MAX($G$1:G21)+1,"") -> 21 | H22: =IFERROR(INDEX($A$2:$A$117,MATCH(ROWS($G$2:G22),$G$2:$G$117,0)),"") -> egészségbiztosítás
A23: élelmezésvezető | B23: 1500 | C23: 1800 | G23: =IF(--ISNUMBER(SEARCH(tev.lista,A23)),MAX($G$1:G22)+1,"") -> 22 | H23: =IFERROR(INDEX($A$2:$A$117,MATCH(ROWS($G$2:G23),$G$2:$G$117,0)),"") -> élelmezésvezető
A24: endokrinológia (hormonrendszer orvoslása) | B24: 19000 | C24: 23500 | G24: =IF(--ISNUMBER(SEARCH(tev.lista,A24)),MAX($G$1:G23)+1,"") -> 23 | H24: =IFERROR(INDEX($A$2:$A$117,MATCH(ROWS($G$2:G24),$G$2:$G$117,0)),"") -> endokrinológia (hormonrendszer orvoslása)
A25: eü. ellenőr | B25: 1500 | C25: 1800 | G25: =IF(--ISNUMBER(SEARCH(tev.lista,A25)),MAX($G$1:G24)+1,"") -> 24 | H25: =IFERROR(INDEX($A$2:$A$117,MATCH(ROWS($G$2:G25),$G$2:$G$117,0)),"") -> eü. ellenőr
A26: eü. menedzser | B26: 1500 | C26: 1800 | G26: =IF(--ISNUMBER(SEARCH(tev.lista,A26)),MAX($G$1:G25)+1,"") -> 25 | H26: =IFERROR(INDEX($A$2:$A$117,MATCH(ROWS($G$2:G26),$G$2:$G$117,0)),"") -> eü. menedzser
A27: eü. szakoktató | B27: 1500 | C27: 1800 | G27: =IF(--ISNUMBER(SEARCH(tev.lista,A27)),MAX($G$1:G26)+1,"") -> 26 | H27: =IFERROR(INDEX($A$2:$A$117,MATCH(ROWS($G$2:G27),$G$2:$G$117,0)),"") -> eü. szakoktató
A28: fertőző betegségek orvoslása | B28: 19000 | C28: 23500 | G28: =IF(--ISNUMBER(SEARCH(tev.lista,A28)),MAX($G$1:G27)+1,"") -> 27 | H28: =IFERROR(INDEX($A$2:$A$117,MATCH(ROWS($G$2:G28),$G$2:$G$117,0)),"") -> fertőző betegségek orvoslása
A29: fizikális medicina és rehabilitációs orvoslás | B29: 19000 | C29: 23500 | G29: =IF(--ISNUMBER(SEARCH(tev.lista,A29)),MAX($G$1:G28)+1,"") -> 28 | H29: =IFERROR(INDEX($A$2:$A$117,MATCH(ROWS($G$2:G29),$G$2:$G$117,0)),"") -> fizikális medicina és rehabilitációs orvoslás
A30: fizioterápia | B30: 19000 | C30: 23500 | G30: =IF(--ISNUMBER(SEARCH(tev.lista,A30)),MAX($G$1:G29)+1,"") -> 29 | H30: =IFERROR(INDEX($A$2:$A$117,MATCH(ROWS($G$2:G30),$G$2:$G$117,0)),"") -> fizioterápia
A31: foniátria (a beszédhangok képzési zavarának gyógyítása) | B31: 13500 | C31: 16000 | G31: =IF(--ISNUMBER(SEARCH(tev.lista,A31)),MAX($G$1:G30)+1,"") -> 30 | H31: =IFERROR(INDEX($A$2:$A$117,MATCH(ROWS($G$2:G31),$G$2:$G$117,0)),"") -> foniátria (a beszédhangok képzési zavarának gyógyítása)
A32: fül-orr-gégész (csecsemő, gyermek, felnőtt) | B32: 33500 | C32: 40000 | G32: =IF(--ISNUMBER(SEARCH(tev.lista,A32)),MAX($G$1:G31)+1,"") -> 31 | H32: =IFERROR(INDEX($A$2:$A$117,MATCH(ROWS($G$2:G32),$G$2:$G$117,0)),"") -> fül-orr-gégész (csecsemő, gyermek, felnőtt)
A33: gasztroenterológia (emésztőszervi megbetegedések, gyermek és felnőtt) | B33: 19000 | C33: 23500 | G33: =IF(--ISNUMBER(SEARCH(tev.lista,A33)),MAX($G$1:G32)+1,"") -> 32 | H33: =IFERROR(INDEX($A$2:$A$117,MATCH(ROWS($G$2:G33),$G$2:$G$117,0)),"") -> gasztroenterológia (emésztőszervi megbetegedések, gyermek és felnőtt)
A34: geriátria (időskori megbetegedések orvoslása) | B34: 19000 | C34: 23500 | G34: =IF(--ISNUMBER(SEARCH(tev.lista,A34)),MAX($G$1:G33)+1,"") -> 33 | H34: =IFERROR(INDEX($A$2:$A$117,MATCH(ROWS($G$2:G34),$G$2:$G$117,0)),"") -> geriátria (időskori megbetegedések orvoslása)
A35: gondozó | B35: 1500 | C35: 1800 | G35: =IF(--ISNUMBER(SEARCH(tev.lista,A35)),MAX($G$1:G34)+1,"") -> 34 | H35: =IFERROR(INDEX($A$2:$A$117,MATCH(ROWS($G$2:G35),$G$2:$G$117,0)),"") -> gondozó
A36: gyermeknőgyógyászat | B36: 33500 | C36: 40000 | G36: =IF(--ISNUMBER(SEARCH(tev.lista,A36)),MAX($G$1:G35)+1,"") -> 35 | H36: =IFERROR(INDEX($A$2:$A$117,MATCH(ROWS($G$2:G36),$G$2:$G$117,0)),"") -> gyermeknőgyógyászat
A37: Gyógyászati segédeszköz forgalmazás, javítás, kölcsönzés | B37: 5500 | C37: 7000 | G37: =IF(--ISNUMBER(SEARCH(tev.lista,A37)),MAX($G$1:G36)+1,"") -> 36 | H37: =IFERROR(INDEX($A$2:$A$117,MATCH(ROWS($G$2:G37),$G$2:$G$117,0)),"") -> Gyógyászati segédeszköz forgalmazás, javítás, kölcsönzés
A38: gyógymasszőr | B38: 1500 | C38: 1800 | G38: =IF(--ISNUMBER(SEARCH(tev.lista,A38)),MAX($G$1:G37)+1,"") -> 37 | H38: =IFERROR(INDEX($A$2:$A$117,MATCH(ROWS($G$2:G38),$G$2:$G$117,0)),"") -> gyógymasszőr
A39: Gyógyszerész | B39: 19000 | C39: 24000 | G39: =IF(--ISNUMBER(SEARCH(tev.lista,A39)),MAX($G$1:G38)+1,"") -> 38 | H39: =IFERROR(INDEX($A$2:$A$117,MATCH(ROWS($G$2:G39),$G$2:$G$117,0)),"") -> Gyógyszerész
A40: Gyógyszerész-asszisztens | B40: 1500 | C40: 1800 | G40: =IF(--ISNUMBER(SEARCH(tev.lista,A40)),MAX($G$1:G39)+1,"") -> 39 | H40: =IFERROR(INDEX($A$2:$A$117,MATCH(ROWS($G$2:G40),$G$2:$G$117,0)),"") -> Gyógyszerész-asszisztens
A41: gyógytornász | B41: 1500 | C41: 1800 | G41: =IF(--ISNUMBER(SEARCH(tev.lista,A41)),MAX($G$1:G40)+1,"") -> 40 | H41: =IFERROR(INDEX($A$2:$A$117,MATCH(ROWS($G$2:G41),$G$2:$G$117,0)),"") -> gyógytornász
A42: haematológia (vérképző rendszer megbetegedései) | B42: 19000 | C42: 23500 | G42: =IF(--ISNUMBER(SEARCH(tev.lista,A42)),MAX($G$1:G41)+1,"") -> 41 | H42: =IFERROR(INDEX($A$2:$A$117,MATCH(ROWS($G$2:G42),$G$2:$G$117,0)),"") -> haematológia (vérképző rendszer megbetegedései)
A43: hagyományos kínai orvoslás | B43: 39000 | C43: 46000 | G43: =IF(--ISNUMBER(SEARCH(tev.lista,A43)),MAX($G$1:G42)+1,"") -> 42 | H43: =IFERROR(INDEX($A$2:$A$117,MATCH(ROWS($G$2:G43),$G$2:$G$117,0)),"") -> hagyományos kínai orvoslás
A44: házi gyermekorvos | B44: 19000 | C44: 23500 | G44: =IF(--ISNUMBER(SEARCH(tev.lista,A44)),MAX($G$1:G43)+1,"") -> 43 | H44: =IFERROR(INDEX($A$2:$A$117,MATCH(ROWS($G$2:G44),$G$2:$G$117,0)),"") -> házi gyermekorvos
A45: háziorvos | B45: 19000 | C45: 23500 | G45: =IF(--ISNUMBER(SEARCH(tev.lista,A45)),MAX($G$1:G44)+1,"") -> 44 | H45: =IFERROR(INDEX($A$2:$A$117,MATCH(ROWS($G$2:G45),$G$2:$G$117,0)),"") -> háziorvos
A46: homeopátiás eljárások | B46: 39000 | C46: 46000 | G46: =IF(--ISNUMBER(SEARCH(tev.lista,A46)),MAX($G$1:G45)+1,"") -> 45 | H46: =IFERROR(INDEX($A$2:$A$117,MATCH(ROWS($G$2:G46),$G$2:$G$117,0)),"") -> homeopátiás eljárások
A47: honvéd / katasztrófa orvostan | B47: 13500 | C47: 16000 | G47: =IF(--ISNUMBER(SEARCH(tev.lista,A47)),MAX($G$1:G46)+1,"") -> 46 | H47: =IFERROR(INDEX($A$2:$A$117,MATCH(ROWS($G$2:G47),$G$2:$G$117,0)),"") -> honvéd / katasztrófa orvostan
A48: igazságügyi elmeorvostan | B48: 13500 | C48: 16000 | G48: =IF(--ISNUMBER(SEARCH(tev.lista,A48)),MAX($G$1:G47)+1,"") -> 47 | H48: =IFERROR(INDEX($A$2:$A$117,MATCH(ROWS($G$2:G48),$G$2:$G$117,0)),"") -> igazságügyi elmeorvostan
A49: igazságügyi orvostan | B49: 13500 | C49: 16000 | G49: =IF(--ISNUMBER(SEARCH(tev.lista,A49)),MAX($G$1:G48)+1,"") -> 48 | H49: =IFERROR(INDEX($A$2:$A$117,MATCH(ROWS($G$2:G49),$G$2:$G$117,0)),"") -> igazságügyi orvostan
A50: immunológia | B50: 13500 | C50: 16000 | G50: =IF(--ISNUMBER(SEARCH(tev.lista,A50)),MAX($G$1:G49)+1,"") -> 49 | H50: =IFERROR(INDEX($A$2:$A$117,MATCH(ROWS($G$2:G50),$G$2:$G$117,0)),"") -> immunológia
A51: indiai gyógyászati eljárások | B51: 39000 | C51: 46000 | G51: =IF(--ISNUMBER(SEARCH(tev.lista,A51)),MAX($G$1:G50)+1,"") -> 50 | H51: =IFERROR(INDEX($A$2:$A$117,MATCH(ROWS($G$2:G51),$G$2:$G$117,0)),"") -> indiai gyógyászati eljárások
A52: infektológia (fertőző betegségek orvoslása) | B52: 19000 | C52: 23500 | G52: =IF(--ISNUMBER(SEARCH(tev.lista,A52)),MAX($G$1:G51)+1,"") -> 51 | H52: =IFERROR(INDEX($A$2:$A$117,MATCH(ROWS($G$2:G52),$G$2:$G$117,0)),"") -> infektológia (fertőző betegségek orvoslása)
A53: iskola-egészségügy | B53: 19000 | C53: 23500 | G53: =IF(--ISNUMBER(SEARCH(tev.lista,A53)),MAX($G$1:G52)+1,"") -> 52 | H53: =IFERROR(INDEX($A$2:$A$117,MATCH(ROWS($G$2:G53),$G$2:$G$117,0)),"") -> iskola-egészségügy
A54: izotópdiagnosztika | B54: 19000 | C54: 23500 | G54: =IF(--ISNUMBER(SEARCH(tev.lista,A54)),MAX($G$1:G53)+1,"") -> 53 | H54: =IFERROR(INDEX($A$2:$A$117,MATCH(ROWS($G$2:G54),$G$2:$G$117,0)),"") -> izotópdiagnosztika
A55: járványügy, járványügyi laboratóriumi vizsgálatok | B55: 19000 | C55: 23500 | G55: =IF(--ISNUMBER(SEARCH(tev.lista,A55)),MAX($G$1:G54)+1,"") -> 54 | H55: =IFERROR(INDEX($A$2:$A$117,MATCH(ROWS($G$2:G55),$G$2:$G$117,0)),"") -> járványügy, járványügyi laboratóriumi vizsgálatok
A56: kardiológus (csecsemő, gyermek, felnőtt) | B56: 33500 | C56: 40000 | G56: =IF(--ISNUMBER(SEARCH(tev.lista,A56)),MAX($G$1:G55)+1,"") -> 55 | H56: =IFERROR(INDEX($A$2:$A$117,MATCH(ROWS($G$2:G56),$G$2:$G$117,0)),"") -> kardiológus (csecsemő, gyermek, felnőtt)
A57: klinikai genetika | B57: 13500 | C57: 16000 | G57: =IF(--ISNUMBER(SEARCH(tev.lista,A57)),MAX($G$1:G56)+1,"") -> 56 | H57: =IFERROR(INDEX($A$2:$A$117,MATCH(ROWS($G$2:G57),$G$2:$G$117,0)),"") -> klinikai genetika
A58: klinikai immunológia | B58: 19000 | C58: 23500 | G58: =IF(--ISNUMBER(SEARCH(tev.lista,A58)),MAX($G$1:G57)+1,"") -> 57 | H58: =IFERROR(INDEX($A$2:$A$117,MATCH(ROWS($G$2:G58),$G$2:$G$117,0)),"") -> klinikai immunológia
A59: klinikai laboratóriumi vizsgálatok | B59: 13500 | C59: 16000 | G59: =IF(--ISNUMBER(SEARCH(tev.lista,A59)),MAX($G$1:G58)+1,"") -> 58 | H59: =IFERROR(INDEX($A$2:$A$117,MATCH(ROWS($G$2:G59),$G$2:$G$117,0)),"") -> klinikai laboratóriumi vizsgálatok
A60: klinikai szakpszichológia (nem orvos) | B60: 13500 | C60: 16000 | G60: =IF(--ISNUMBER(SEARCH(tev.lista,A60)),MAX($G$1:G59)+1,"") -> 59 | H60: =IFERROR(INDEX($A$2:$A$117,MATCH(ROWS($G$2:G60),$G$2:$G$117,0)),"") -> klinikai szakpszichológia (nem orvos)
A61: kórbonctan-kórszövettan | B61: 13500 | C61: 16000 | G61: =IF(--ISNUMBER(SEARCH(tev.lista,A61)),MAX($G$1:G60)+1,"") -> 60 | H61: =IFERROR(INDEX($A$2:$A$117,MATCH(ROWS($G$2:G61),$G$2:$G$117,0)),"") -> kórbonctan-kórszövettan
A62: közegészségügy / népegészségügy, megelőző orvostan | B62: 19000 | C62: 23500 | G62: =IF(--ISNUMBER(SEARCH(tev.lista,A62)),MAX($G$1:G61)+1,"") -> 61 | H62: =IFERROR(INDEX($A$2:$A$117,MATCH(ROWS($G$2:G62),$G$2:$G$117,0)),"") -> közegészségügy / népegészségügy, megelőző orvostan
A63: laboratóriumi haematológia | B63: 13500 | C63: 16000 | G63: =IF(--ISNUMBER(SEARCH(tev.lista,A63)),MAX($G$1:G62)+1,"") -> 62 | H63: =IFERROR(INDEX($A$2:$A$117,MATCH(ROWS($G$2:G63),$G$2:$G$117,0)),"") -> laboratóriumi haematológia
A64: manuálterápiás eljárások | B64: 39000 | C64: 46000 | G64: =IF(--ISNUMBER(SEARCH(tev.lista,A64)),MAX($G$1:G63)+1,"") -> 63 | H64: =IFERROR(INDEX($A$2:$A$117,MATCH(ROWS($G$2:G64),$G$2:$G$117,0)),"") -> manuálterápiás eljárások
A65: méregtelenítő módok | B65: 39000 | C65: 46000 | G65: =IF(--ISNUMBER(SEARCH(tev.lista,A65)),MAX($G$1:G64)+1,"") -> 64 | H65: =IFERROR(INDEX($A$2:$A$117,MATCH(ROWS($G$2:G65),$G$2:$G$117,0)),"") -> méregtelenítő módok
A66: molekuláris genetikai diagnosztika | B66: 13500 | C66: 16000 | G66: =IF(--ISNUMBER(SEARCH(tev.lista,A66)),MAX($G$1:G65)+1,"") -> 65 | H66: =IFERROR(INDEX($A$2:$A$117,MATCH(ROWS($G$2:G66),$G$2:$G$117,0)),"") -> molekuláris genetikai diagnosztika
A67: mozgásszervi rehabilitáció | B67: 19000 | C67: 23500 | G67: =IF(--ISNUMBER(SEARCH(tev.lista,A67)),MAX($G$1:G66)+1,"") -> 66 | H67: =IFERROR(INDEX($A$2:$A$117,MATCH(ROWS($G$2:G67),$G$2:$G$117,0)),"") -> mozgásszervi rehabilitáció
A68: neonatológia (újszülött–gyógyászat) | B68: 33500 | C68: 40000 | G68: =IF(--ISNUMBER(SEARCH(tev.lista,A68)),MAX($G$1:G67)+1,"") -> 67 | H68: =IFERROR(INDEX($A$2:$A$117,MATCH(ROWS($G$2:G68),$G$2:$G$117,0)),"") -> neonatológia (újszülött–gyógyászat)
A69: neurálterápiás módszerek | B69: 39000 | C69: 46000 | G69: =IF(--ISNUMBER(SEARCH(tev.lista,A69)),MAX($G$1:G68)+1,"") -> 68 | H69: =IFERROR(INDEX($A$2:$A$117,MATCH(ROWS($G$2:G69),$G$2:$G$117,0)),"") -> neurálterápiás módszerek
A70: neurológia (ideggyógyászat, gyermek és felnőtt) | B70: 13500 | C70: 16000 | G70: =IF(--ISNUMBER(SEARCH(tev.lista,A70)),MAX($G$1:G69)+1,"") -> 69 | H70: =IFERROR(INDEX($A$2:$A$117,MATCH(ROWS($G$2:G70),$G$2:$G$117,0)),"") -> neurológia (ideggyógyászat, gyermek és felnőtt)
A71: neuropatológia (idegkórtan) | B71: 13500 | C71: 16000 | G71: =IF(--ISNUMBER(SEARCH(tev.lista,A71)),MAX($G$1:G70)+1,"") -> 70 | H71: =IFERROR(INDEX($A$2:$A$117,MATCH(ROWS($G$2:G71),$G$2:$G$117,0)),"") -> neuropatológia (idegkórtan)
A72: neuroradiológia (képalkotó eljárások) | B72: 33500 | C72: 40000 | G72: =IF(--ISNUMBER(SEARCH(tev.lista,A72)),MAX($G$1:G71)+1,"") -> 71 | H72: =IFERROR(INDEX($A$2:$A$117,MATCH(ROWS($G$2:G72),$G$2:$G$117,0)),"") -> neuroradiológia (képalkotó eljárások)
A73: nővér | B73: 1500 | C73: 1800 | G73: =IF(--ISNUMBER(SEARCH(tev.lista,A73)),MAX($G$1:G72)+1,"") -> 72 | H73: =IFERROR(INDEX($A$2:$A$117,MATCH(ROWS($G$2:G73),$G$2:$G$117,0)),"") -> nővér
A74: onkológia | B74: 33500 | C74: 40000 | G74: =IF(--ISNUMBER(SEARCH(tev.lista,A74)),MAX($G$1:G73)+1,"") -> 73 | H74: =IFERROR(INDEX($A$2:$A$117,MATCH(ROWS($G$2:G74),$G$2:$G$117,0)),"") -> onkológia
A75: optometrista | B75: 1500 | C75: 1800 | G75: =IF(--ISNUMBER(SEARCH(tev.lista,A75)),MAX($G$1:G74)+1,"") -> 74 | H75: =IFERROR(INDEX($A$2:$A$117,MATCH(ROWS($G$2:G75),$G$2:$G$117,0)),"") -> optometrista
A76: ortopédia | B76: 19000 | C76: 23500 | G76: =IF(--ISNUMBER(SEARCH(tev.lista,A76)),MAX($G$1:G75)+1,"") -> 75 | H76: =IFERROR(INDEX($A$2:$A$117,MATCH(ROWS($G$2:G76),$G$2:$G$117,0)),"") -> ortopédia
A77: orvosi laboratóriumi diagnosztika | B77: 13500 | C77: 16000 | G77: =IF(--ISNUMBER(SEARCH(tev.lista,A77)),MAX($G$1:G76)+1,"") -> 76 | H77: =IFERROR(INDEX($A$2:$A$117,MATCH(ROWS($G$2:G77),$G$2:$G$117,0)),"") -> orvosi laboratóriumi diagnosztika
A78: orvosi mikrobiológia | B78: 13500 | C78: 16000 | G78: =IF(--ISNUMBER(SEARCH(tev.lista,A78)),MAX($G$1:G77)+1,"") -> 77 | H78: =IFERROR(INDEX($A$2:$A$117,MATCH(ROWS($G$2:G78),$G$2:$G$117,0)),"") -> orvosi mikrobiológia
A79: orvosi rehabilitáció | B79: 19000 | C79: 23500 | G79: =IF(--ISNUMBER(SEARCH(tev.lista,A79)),MAX($G$1:G78)+1,"") -> 78 | H79: =IFERROR(INDEX($A$2:$A$117,MATCH(ROWS($G$2:G79),$G$2:$G$117,0)),"") -> orvosi rehabilitáció
A80: oxyológia (mentőorvostan) | B80: 19000 | C80: 23500 | G80: =IF(--ISNUMBER(SEARCH(tev.lista,A80)),MAX($G$1:G79)+1,"") -> 79 | H80: =IFERROR(INDEX($A$2:$A$117,MATCH(ROWS($G$2:G80),$G$2:$G$117,0)),"") -> oxyológia (mentőorvostan)
A81: pszichiátria (gyermek és felnőtt) | B81: 19000 | C81: 23500 | G81: =IF(--ISNUMBER(SEARCH(tev.lista,A81)),MAX($G$1:G80)+1,"") -> 80 | H81: =IFERROR(INDEX($A$2:$A$117,MATCH(ROWS($G$2:G81),$G$2:$G$117,0)),"") -> pszichiátria (gyermek és felnőtt)
A82: pszichoterápia | B82: 19000 | C82: 23500 | G82: =IF(--ISNUMBER(SEARCH(tev.lista,A82)),MAX($G$1:G81)+1,"") -> 81 | H82: =IFERROR(INDEX($A$2:$A$117,MATCH(ROWS($G$2:G82),$G$2:$G$117,0)),"") -> pszichoterápia
A83: pulmonologia (tüdőgyógyászat, légúti megbetegedések orvoslása) | B83: 19000 | C83: 23500 | G83: =IF(--ISNUMBER(SEARCH(tev.lista,A83)),MAX($G$1:G82)+1,"") -> 82 | H83: =IFERROR(INDEX($A$2:$A$117,MATCH(ROWS($G$2:G83),$G$2:$G$117,0)),"") -> pulmonologia (tüdőgyógyászat, légúti megbetegedések orvoslása)
A84: radiológia (gyermek és felnőtt) | B84: 33500 | C84: 40000 | G84: =IF(--ISNUMBER(SEARCH(tev.lista,A84)),MAX($G$1:G83)+1,"") -> 83 | H84: =IFERROR(INDEX($A$2:$A$117,MATCH(ROWS($G$2:G84),$G$2:$G$117,0)),"") -> radiológia (gyermek és felnőtt)
A85: repülőorvostan | B85: 19000 | C85: 23500 | G85: =IF(--ISNUMBER(SEARCH(tev.lista,A85)),MAX($G$1:G84)+1,"") -> 84 | H85: =IFERROR(INDEX($A$2:$A$117,MATCH(ROWS($G$2:G85),$G$2:$G$117,0)),"") -> repülőorvostan
A86: reumatológia | B86: 19000 | C86: 23500 | G86: =IF(--ISNUMBER(SEARCH(tev.lista,A86)),MAX($G$1:G85)+1,"") -> 85 | H86: =IFERROR(INDEX($A$2:$A$117,MATCH(ROWS($G$2:G86),$G$2:$G$117,0)),"") -> reumatológia
A87: röntgenológia | B87: 33500 | C87: 40000 | G87: =IF(--ISNUMBER(SEARCH(tev.lista,A87)),MAX($G$1:G86)+1,"") -> 86 | H87: =IFERROR(INDEX($A$2:$A$117,MATCH(ROWS($G$2:G87),$G$2:$G$117,0)),"") -> röntgenológia
A88: sportorvostan | B88: 19000 | C88: 23500 | G88: =IF(--ISNUMBER(SEARCH(tev.lista,A88)),MAX($G$1:G87)+1,"") -> 87 | H88: =IFERROR(INDEX($A$2:$A$117,MATCH(ROWS($G$2:G88),$G$2:$G$117,0)),"") -> sportorvostan
A89: sugárbiológia, sugár-egészségügy | B89: 13500 | C89: 16000 | G89: =IF(--ISNUMBER(SEARCH(tev.lista,A89)),MAX($G$1:G88)+1,"") -> 88 | H89: =IFERROR(INDEX($A$2:$A$117,MATCH(ROWS($G$2:G89),$G$2:$G$117,0)),"") -> sugárbiológia, sugár-egészségügy
A90: sugárterápia | B90: 33500 | C90: 40000 | G90: =IF(--ISNUMBER(SEARCH(tev.lista,A90)),MAX($G$1:G89)+1,"") -> 89 | H90: =IFERROR(INDEX($A$2:$A$117,MATCH(ROWS($G$2:G90),$G$2:$G$117,0)),"") -> sugárterápia
A91: sürgősségi orvostan | B91: 19000 | C91: 23500 | G91: =IF(--ISNUMBER(SEARCH(tev.lista,A91)),MAX($G$1:G90)+1,"") -> 90 | H91: =IFERROR(INDEX($A$2:$A$117,MATCH(ROWS($G$2:G91),$G$2:$G$117,0)),"") -> sürgősségi orvostan
A92: szakápoló | B92: 1500 | C92: 1800 | G92: =IF(--ISNUMBER(SEARCH(tev.lista,A92)),MAX($G$1:G91)+1,"") -> 91 | H92: =IFERROR(INDEX($A$2:$A$117,MATCH(ROWS($G$2:G92),$G$2:$G$117,0)),"") -> szakápoló
A93: szakaszisztens | B93: 1500 | C93: 1800 | G93: =IF(--ISNUMBER(SEARCH(tev.lista,A93)),MAX($G$1:G92)+1,"") -> 92 | H93: =IFERROR(INDEX($A$2:$A$117,MATCH(ROWS($G$2:G93),$G$2:$G$117,0)),"") -> szakaszisztens
A94: szakgondozó | B94: 1500 | C94: 1800 | G94: =IF(--ISNUMBER(SEARCH(tev.lista,A94)),MAX($G$1:G93)+1,"") -> 93 | H94: =IFERROR(INDEX($A$2:$A$117,MATCH(ROWS($G$2:G94),$G$2:$G$117,0)),"") -> szakgondozó
A95: szemészet (gyermek és felnőtt) | B95: 33500 | C95: 40000 | G95: =IF(--ISNUMBER(SEARCH(tev.lista,A95)),MAX($G$1:G94)+1,"") -> 94 | H95: =IFERROR(INDEX($A$2:$A$117,MATCH(ROWS($G$2:G95),$G$2:$G$117,0)),"") -> szemészet (gyermek és felnőtt)
A96: szemészet (gyermek és felnőtt) egynapos sebészettel | G96: =IF(--ISNUMBER(SEARCH(tev.lista,A96)),MAX($G$1:G95)+1,"") -> 95 | H96: =IFERROR(INDEX($A$2:$A$117,MATCH(ROWS($G$2:G96),$G$2:$G$117,0)),"") -> szemészet (gyermek és felnőtt) egynapos sebészettel
A97: Szociális gondozó | B97: 5500 | C97: 7000 | G97: =IF(--ISNUMBER(SEARCH(tev.lista,A97)),MAX($G$1:G96)+1,"") -> 96 | H97: =IFERROR(INDEX($A$2:$A$117,MATCH(ROWS($G$2:G97),$G$2:$G$117,0)),"") -> Szociális gondozó
A98: társadalom-orvostan | B98: 13500 | C98: 16000 | G98: =IF(--ISNUMBER(SEARCH(tev.lista,A98)),MAX($G$1:G97)+1,"") -> 97 | H98: =IFERROR(INDEX($A$2:$A$117,MATCH(ROWS($G$2:G98),$G$2:$G$117,0)),"") -> társadalom-orvostan
A99: természetgyógyászat - akupresszúra | B99: 33500 | C99: 40000 | G99: =IF(--ISNUMBER(SEARCH(tev.lista,A99)),MAX($G$1:G98)+1,"") -> 98 | H99: =IFERROR(INDEX($A$2:$A$117,MATCH(ROWS($G$2:G99),$G$2:$G$117,0)),"") -> természetgyógyászat - akupresszúra
A100: természetgyógyászat - alternatív fizioterápia | B100: 23500 | C100: 29000 | G100: =IF(--ISNUMBER(SEARCH(tev.lista,A100)),MAX($G$1:G99)+1,"") -> 99 | H100: =IFERROR(INDEX($A$2:$A$117,MATCH(ROWS($G$2:G100),$G$2:$G$117,0)),"") -> természetgyógyászat - alternatív fizioterápia
A101: természetgyógyászat - alternatív mozgás– és masszázsterápiák | B101: 33500 | C101: 40000 | G101: =IF(--ISNUMBER(SEARCH(tev.lista,A101)),MAX($G$1:G100)+1,"") -> 100 | H101: =IFERROR(INDEX($A$2:$A$117,MATCH(ROWS($G$2:G101),$G$2:$G$117,0)),"") -> természetgyógyászat - alternatív mozgás– és masszázsterápiák
A102: természetgyógyászat - bioenergiát alkalmazó módszerek | B102: 19000 | C102: 24000 | G102: =IF(--ISNUMBER(SEARCH(tev.lista,A102)),MAX($G$1:G101)+1,"") -> 101 | H102: =IFERROR(INDEX($A$2:$A$117,MATCH(ROWS($G$2:G102),$G$2:$G$117,0)),"") -> természetgyógyászat - bioenergiát alkalmazó módszerek
A103: természetgyógyászat - életmód tanácsadás és terápia | B103: 23500 | C103: 29000 | G103: =IF(--ISNUMBER(SEARCH(tev.lista,A103)),MAX($G$1:G102)+1,"") -> 102 | H103: =IFERROR(INDEX($A$2:$A$117,MATCH(ROWS($G$2:G103),$G$2:$G$117,0)),"") -> természetgyógyászat - életmód tanácsadás és terápia
A104: természetgyógyászat - fitoterápia | B104: 23500 | C104: 29000 | G104: =IF(--ISNUMBER(SEARCH(tev.lista,A104)),MAX($G$1:G103)+1,"") -> 103 | H104: =IFERROR(INDEX($A$2:$A$117,MATCH(ROWS($G$2:G104),$G$2:$G$117,0)),"") -> természetgyógyászat - fitoterápia
A105: természetgyógyászat - fülakupunktúrás addiktológiai eljárások | B105: 23500 | C105: 29000 | G105: =IF(--ISNUMBER(SEARCH(tev.lista,A105)),MAX($G$1:G104)+1,"") -> 104 | H105: =IFERROR(INDEX($A$2:$A$117,MATCH(ROWS($G$2:G105),$G$2:$G$117,0)),"") -> természetgyógyászat - fülakupunktúrás addiktológiai eljárások
A106: természetgyógyászat - gyógytornászok által végezhető manuálterápiás eljárások | B106: 33500 | C106: 40000 | G106: =IF(--ISNUMBER(SEARCH(tev.lista,A106)),MAX($G$1:G105)+1,"") -> 105 | H106: =IFERROR(INDEX($A$2:$A$117,MATCH(ROWS($G$2:G106),$G$2:$G$117,0)),"") -> természetgyógyászat - gyógytornászok által végezhető manuálterápiás eljárások
A107: természetgyógyászat - kineziológiai módszerek | B107: 19000 | C107: 24000 | G107: =IF(--ISNUMBER(SEARCH(tev.lista,A107)),MAX($G$1:G106)+1,"") -> 106 | H107: =IFERROR(INDEX($A$2:$A$117,MATCH(ROWS($G$2:G107),$G$2:$G$117,0)),"") -> természetgyógyászat - kineziológiai módszerek
A108: természetgyógyászat - reflexzóna terápia | B108: 23500 | C108: 29000 | G108: =IF(--ISNUMBER(SEARCH(tev.lista,A108)),MAX($G$1:G107)+1,"") -> 107 | H108: =IFERROR(INDEX($A$2:$A$117,MATCH(ROWS($G$2:G108),$G$2:$G$117,0)),"") -> természetgyógyászat - reflexzóna terápia
A109: természetgyógyászat - szemtréning eljárások | B109: 19000 | C109: 24000 | G109: =IF(--ISNUMBER(SEARCH(tev.lista,A109)),MAX($G$1:G108)+1,"") -> 108 | H109: =IFERROR(INDEX($A$2:$A$117,MATCH(ROWS($G$2:G109),$G$2:$G$117,0)),"") -> természetgyógyászat - szemtréning eljárások
A110: tibeti gyógyászati eljárások | B110: 39000 | C110: 46000 | G110: =IF(--ISNUMBER(SEARCH(tev.lista,A110)),MAX($G$1:G109)+1,"") -> 109 | H110: =IFERROR(INDEX($A$2:$A$117,MATCH(ROWS($G$2:G110),$G$2:$G$117,0)),"") -> tibeti gyógyászati eljárások
A111: transzfuziológia | B111: 19000 | C111: 23500 | G111: =IF(--ISNUMBER(SEARCH(tev.lista,A111)),MAX($G$1:G110)+1,"") -> 110 | H111: =IFERROR(INDEX($A$2:$A$117,MATCH(ROWS($G$2:G111),$G$2:$G$117,0)),"") -> transzfuziológia
A112: trópusi betegségek orvoslása | B112: 13500 | C112: 16000 | G112: =IF(--ISNUMBER(SEARCH(tev.lista,A112)),MAX($G$1:G111)+1,"") -> 111 | H112: =IFERROR(INDEX($A$2:$A$117,MATCH(ROWS($G$2:G112),$G$2:$G$117,0)),"") -> trópusi betegségek orvoslása
A113: ultrahang diagnoszta | B113: 33500 | C113: 40000 | G113: =IF(--ISNUMBER(SEARCH(tev.lista,A113)),MAX($G$1:G112)+1,"") -> 112 | H113: =IFERROR(INDEX($A$2:$A$117,MATCH(ROWS($G$2:G113),$G$2:$G$117,0)),"") -> ultrahang diagnoszta
A114: urológia | B114: 33500 | C114: 40000 | G114: =IF(--ISNUMBER(SEARCH(tev.lista,A114)),MAX($G$1:G113)+1,"") -> 113 | H114: =IFERROR(INDEX($A$2:$A$117,MATCH(ROWS($G$2:G114),$G$2:$G$117,0)),"") -> urológia
A115: üzemorvostan | B115: 19000 | C115: 23500 | G115: =IF(--ISNUMBER(SEARCH(tev.lista,A115)),MAX($G$1:G114)+1,"") -> 114 | H115: =IFERROR(INDEX($A$2:$A$117,MATCH(ROWS($G$2:G115),$G$2:$G$117,0)),"") -> üzemorvostan
A116: védőnő | B116: 1500 | C116: 1800 | G116: =IF(--ISNUMBER(SEARCH(tev.lista,A116)),MAX($G$1:G115)+1,"") -> 115 | H116: =IFERROR(INDEX($A$2:$A$117,MATCH(ROWS($G$2:G116),$G$2:$G$117,0)),"") -> védőnő
A117: vér oxigenizálásán alapuló terápiák | B117: 39000 | C117: 46000 | G117: =IF(--ISNUMBER(SEARCH(tev.lista,A117)),MAX($G$1:G116)+1,"") -> 116 | H117: =IFERROR(INDEX($A$2:$A$117,MATCH(ROWS($G$2:G117),$G$2:$G$117,0)),"") -> vér oxigenizálásán alapuló terápiák
